Workbook

Sheet DISCLAIMER
A1: The information provided by RSM Corporate Finance LLP (“we,” “us” or “our”) in this file is for general informational, instructional and illustrative purposes only. All information contained is shared in good faith, however we make no representation or warranty of any kind, express or implied, regarding the accuracy, adequacy, validity, reliability, availability or completeness of any information contained in this file. Under no circumstance shall we have any liability to you for any loss or damage of any kind incurred as a result of the use of this file or reliance on any information provided in this file. Your use of this file and your reliance on any information contained herein is solely at your own risk and no duty of care is intended, created or to be inferred.

Sheet Agenda
A2: 0.1 Agenda
C4: 1.0 Introduction to Scenarios
C6: 2.0 Basic Implementations
C8: 3.0 Advanced Implementations
C10: 4.0 Macros
C12: 5.0 Data Tables
C14: 6.0 Pitfalls
C16: 7.0 Conclusion
C18: 8.0 Q+A

Sheet Part 1

Sheet 1.1 Intro
A2: 1.1 Introduction
C4: What is the purpose of a financial model?
C8: What is a "Sensitivity" input?
C12: Most variables are not independent…
C16: Why are multiple versions of a model bad?
C20: How can a scenario manager help?

Sheet 1.2 Basic
A2: 1.2 Basic Scenario Manager
C6: Selected Scenario | E6: 3
C8: Variable | D8: Units | E8: Live | G8: 1 | H8: 2 | I8: 3 | J8: 4 | K8: 5
C10: Scenario Name | D10: [text] | E10: =INDEX(G10:K10,$E$6) -> Downside | G10: Base Case | H10: Upside | I10: Downside | J10: GFC | K10: Moon Shot
C12: Revenue Y1 | D12: [£'000] | E12: =INDEX(G12:K12,$E$6) -> 800 | G12: 1000 | H12: 1200 | I12: 800 | J12: 450 | K12: 1800
C13: Revenue Y2 | D13: [£'000] | E13: =INDEX(G13:K13,$E$6) -> 960 | G13: 1200 | H13: 1440 | I13: 960 | J13: 540 | K13: 2160
C14: Revenue Y3 | D14: [£'000] | E14: =INDEX(G14:K14,$E$6) -> 1200 | G14: 1500 | H14: 1800 | I14: 1200 | J14: 675 | K14: 2700
C15: Revenue Y4 | D15: [£'000] | E15: =INDEX(G15:K15,$E$6) -> 1440 | G15: 1800 | H15: 2160 | I15: 1440 | J15: 810 | K15: 3240
C17: CoS% Y1 | D17: [%] | E17: =INDEX(G17:K17,$E$6) -> 0.7 | G17: 0.7 | H17: 0.65 | I17: 0.7 | J17: 0.8 | K17: 0.7
C18: CoS% Y2 | D18: [%] | E18: =INDEX(G18:K18,$E$6) -> 0.69 | G18: 0.69 | H18: 0.65 | I18: 0.69 | J18: 0.8 | K18: 0.69
C19: CoS% Y3 | D19: [%] | E19: =INDEX(G19:K19,$E$6) -> 0.68 | G19: 0.68 | H19: 0.65 | I19: 0.68 | J19: 0.8 | K19: 0.68
C20: CoS% Y4 | D20: [%] | E20: =INDEX(G20:K20,$E$6) -> 0.67 | G20: 0.67 | H20: 0.65 | I20: 0.67 | J20: 0.8 | K20: 0.67
C22: Interest Rate Y1 | D22: [%] | E22: =INDEX(G22:K22,$E$6) -> 0.03 | G22: 0.03 | H22: 0.03 | I22: 0.03 | J22: 0.05 | K22: 0.03
C23: Interest Rate Y2 | D23: [%] | E23: =INDEX(G23:K23,$E$6) -> 0.03 | G23: 0.03 | H23: 0.03 | I23: 0.03 | J23: 0.05 | K23: 0.03
C24: Interest Rate Y3 | D24: [%] | E24: =INDEX(G24:K24,$E$6) -> 0.03 | G24: 0.03 | H24: 0.03 | I24: 0.03 | J24: 0.05 | K24: 0.03
C25: Interest Rate Y4 | D25: [%] | E25: =INDEX(G25:K25,$E$6) -> 0.03 | G25: 0.03 | H25: 0.03 | I25: 0.03 | J25: 0.05 | K25: 0.03

Sheet 1.3 Basic (labelled)
A2: 1.3 Basic Scenario Manager (labelled)
C6: Selected Scenario | E6: 3
C8: Variable | D8: Units | E8: Live | G8: 1 | H8: 2 | I8: 3 | J8: 4 | K8: 5
C10: Scenario Name | D10: [text] | E10: =INDEX(G10:K10,$E$6) -> Downside | G10: Base Case | H10: Upside | I10: Downside | J10: GFC | K10: Moon Shot
C12: Revenue Y1 | D12: [£'000] | E12: =INDEX(G12:K12,$E$6) -> 800 | G12: 1000 | H12: 1200 | I12: 800 | J12: 450 | K12: 1800
C13: Revenue Y2 | D13: [£'000] | E13: =INDEX(G13:K13,$E$6) -> 960 | G13: 1200 | H13: 1440 | I13: 960 | J13: 540 | K13: 2160
C14: Revenue Y3 | D14: [£'000] | E14: =INDEX(G14:K14,$E$6) -> 1200 | G14: 1500 | H14: 1800 | I14: 1200 | J14: 675 | K14: 2700
C15: Revenue Y4 | D15: [£'000] | E15: =INDEX(G15:K15,$E$6) -> 1440 | G15: 1800 | H15: 2160 | I15: 1440 | J15: 810 | K15: 3240
C17: CoS% Y1 | D17: [%] | E17: =INDEX(G17:K17,$E$6) -> 0.7 | G17: 0.7 | H17: 0.65 | I17: 0.7 | J17: 0.8 | K17: 0.7
C18: CoS% Y2 | D18: [%] | E18: =INDEX(G18:K18,$E$6) -> 0.69 | G18: 0.69 | H18: 0.65 | I18: 0.69 | J18: 0.8 | K18: 0.69
C19: CoS% Y3 | D19: [%] | E19: =INDEX(G19:K19,$E$6) -> 0.68 | G19: 0.68 | H19: 0.65 | I19: 0.68 | J19: 0.8 | K19: 0.68
C20: CoS% Y4 | D20: [%] | E20: =INDEX(G20:K20,$E$6) -> 0.67 | G20: 0.67 | H20: 0.65 | I20: 0.67 | J20: 0.8 | K20: 0.67
C22: Interest Rate Y1 | D22: [%] | E22: =INDEX(G22:K22,$E$6) -> 0.03 | G22: 0.03 | H22: 0.03 | I22: 0.03 | J22: 0.05 | K22: 0.03
C23: Interest Rate Y2 | D23: [%] | E23: =INDEX(G23:K23,$E$6) -> 0.03 | G23: 0.03 | H23: 0.03 | I23: 0.03 | J23: 0.05 | K23: 0.03
C24: Interest Rate Y3 | D24: [%] | E24: =INDEX(G24:K24,$E$6) -> 0.03 | G24: 0.03 | H24: 0.03 | I24: 0.03 | J24: 0.05 | K24: 0.03
C25: Interest Rate Y4 | D25: [%] | E25: =INDEX(G25:K25,$E$6) -> 0.03 | G25: 0.03 | H25: 0.03 | I25: 0.03 | J25: 0.05 | K25: 0.03

Sheet Part 2

Sheet 2.1 Overview
A2: 2.1 Implementation Overview
C4: Step 1 - Build model with normal inputs
C8: Step 2 - Decide which ones will be input via scenario manager
C12: Step 3 - Build scenario manager sheet
C16: Step 4 - Link the original inputs to the scenario manager outputs
C20: Step 5 - Test

Sheet 2.2 Model Unlinked
A2: 2.2 Basic Model (not linked)
C4: Timeline
C6: Year | E6: Year 0 | F6: Year 1 | G6: Year 2 | H6: Year 3 | I6: Year 4
C8: Input Assumptions
C9: P&L Assumptions
C11: Revenue | D11: [£'000] | F11: 10000 | G11: 10000 | H11: 10000 | I11: 10000
C12: CoS % | D12: [%] | F12: 0.2 | G12: 0.2 | H12: 0.2 | I12: 0.2
C13: Overheads Pct of Revenue | D13: [%] | F13: 0.1 | G13: 0.1 | H13: 0.1 | I13: 0.1
C14: Tax Rate | D14: [%] | F14: 0.19 | G14: 0.19 | H14: 0.19 | I14: 0.19
C16: Fixed Assets
C18: Depreciation Rate | F18: 0.1 | G18: 0.1 | H18: 0.1 | I18: 0.1
C20: Working Capital
C22: Debtors Days | F22: 30 | G22: 30 | H22: 30 | I22: 30
C23: Creditors Days | F23: 45 | G23: 45 | H23: 45 | I23: 45
C25: Loan
C27: Capital Drawdown | D27: [£'000] | F27: 1000
C28: Capital Repayment | D28: [£'000] | I28: -1000
C29: Interest Rate | D29: [%] | F29: 0.1 | G29: 0.1 | H29: 0.1 | I29: 0.1
C31: Workings
C32: Fixed Assets
C34: =C32&" b/f" -> Fixed Assets b/f | F34: =E36 -> 10000 | G34: =F36 -> 9000 | H34: 8100 | I34: 7290
C35: Depreciation | F35: =-F34*F18 -> -1000 | G35: =-G34*G18 -> -900 | H35: -810 | I35: -729
C36: =C32&" c/f" -> Fixed Assets c/f | E36: =E$92 -> 10000 | F36: =SUM(F34:F35) -> 9000 | G36: =SUM(G34:G35) -> 8100 | H36: 7290 | I36: 6561
C38: Debtors
C40: =C38&" b/f" -> Debtors b/f | F40: =E43 -> 900 | G40: =F43 -> 821.9178082 | H40: 821.9178082 | I40: 821.9178082
C41: Sales | F41: =F77 -> 10000 | G41: =G77 -> 10000 | H41: =H77 -> 10000 | I41: =I77 -> 10000
C42: Cash | F42: =F43-F40-F41 -> -10078.08219 | G42: =G43-G40-G41 -> -10000 | H42: -10000 | I42: -10000
C43: =C38&" c/f" -> Debtors c/f | E43: =E$94 -> 900 | F43: =F41*F22/365 -> 821.9178082 | G43: =G41*G22/365 -> 821.9178082 | H43: 821.9178082 | I43: 821.9178082
C45: Creditors
C47: =C45&" b/f" -> Creditors b/f | F47: =E50 -> -400 | G47: =F50 -> -369.8630137 | H47: -369.8630137 | I47: -369.8630137
C48: Costs | F48: =F78+F81 -> -3000 | G48: =G78+G81 -> -3000 | H48: =H78+H81 -> -3000 | I48: =I78+I81 -> -3000
C49: Cash | F49: =F50-F47-F48 -> 3030.136986 | G49: =G50-G47-G48 -> 3000 | H49: =H50-H47-H48 -> 3000 | I49: =I50-I47-I48 -> 3000
C50: =C45&" c/f" -> Creditors c/f | E50: =E98 -> -400 | F50: =F48*F23/365 -> -369.8630137 | G50: =G48*G23/365 -> -369.8630137 | H50: -369.8630137 | I50: -369.8630137
C52: Loan
C54: =C52&" b/f" -> Loan b/f | F54: =E59 -> 0 | G54: =F59 -> -1000 | H54: -1000 | I54: -1000
C55: Capital Drawn | F55: =-F27 -> -1000 | G55: =-G27 -> 0 | H55: 0 | I55: 0
C56: Capital Repaid | F56: =-F28 -> 0 | G56: 0 | H56: 0 | I56: 1000
C57: Interest Charged | F57: =(F54+SUM(F55:F56)/2)*F29 -> -50 | G57: =(G54+SUM(G55:G56)/2)*G29 -> -100 | H57: -100 | I57: -50
C58: Interest Paid | F58: =-F57 -> 50 | G58: =-G57 -> 100 | H58: 100 | I58: 50
C59: =C52&" c/f" -> Loan c/f | E59: =E100 -> 0 | F59: =SUM(F54:F58) -> -1000 | G59: =SUM(G54:G58) -> -1000 | H59: -1000 | I59: 0
C61: Tax
C63: =C61&" b/f" -> Tax b/f | F63: =E66 -> -500 | G63: =F66 -> -565.25 | H63: -570 | I63: -578.55
C64: Charge | F64: =F87 -> -1130.5 | G64: =G87 -> -1140 | H64: =H87 -> -1157.1 | I64: =I87 -> -1181.99
C65: Cash | F65: =-F64/2-E66 -> 1065.25 | G65: =-F64/2-G64/2 -> 1135.25 | H65: =-G64/2-H64/2 -> 1148.55 | I65: 1169.545
C66: =C61&" c/f" -> Tax c/f | E66: =E99 -> -500 | F66: =SUM(F63:F65) -> -565.25 | G66: =SUM(G63:G65) -> -570 | H66: -578.55 | I66: -590.995
C68: Reserves
C70: =C68&" b/f" -> Reserves b/f | F70: =E72 -> 16000 | G70: =F72 -> 20819.5 | H70: 25679.5 | I70: 30612.4
C71: Profit in period | F71: =F88 -> 4819.5 | G71: =G88 -> 4860 | H71: =H88 -> 4932.9 | I71: =I88 -> 5039.01
C72: =C68&" c/f" -> Reserves c/f | E72: =E107 -> 16000 | F72: =SUM(F70:F71) -> 20819.5 | G72: =SUM(G70:G71) -> 25679.5 | H72: 30612.4 | I72: 35651.41
C74: Financial Statements
C75: P&L
C77: Revenue | D77: [£'000] | F77: =F11 -> 10000 | G77: =G11 -> 10000 | H77: =H11 -> 10000 | I77: =I11 -> 10000
C78: Cost of Sales | D78: [£'000] | F78: =-F77*F12 -> -2000 | G78: =-G77*G12 -> -2000 | H78: =-H77*H12 -> -2000 | I78: =-I77*I12 -> -2000
C79: Gross Margin | D79: [£'000] | F79: =SUM(F77:F78) -> 8000 | G79: =SUM(G77:G78) -> 8000 | H79: 8000 | I79: 8000
C80: Gross Margin Pct | D80: [%] | F80: =IF(F77=0,0,F79/F77) -> 0.8 | G80: =IF(G77=0,0,G79/G77) -> 0.8 | H80: 0.8 | I80: 0.8
C81: Overheads | D81: [£'000] | F81: =-F77*F13 -> -1000 | G81: =-G77*G13 -> -1000 | H81: =-H77*H13 -> -1000 | I81: =-I77*I13 -> -1000
C82: Depreciation | D82: [£'000] | F82: =F35 -> -1000 | G82: =G35 -> -900 | H82: =H35 -> -810 | I82: =I35 -> -729
C83: EBIT | D83: [£'000] | F83: =F79+F81+F82 -> 6000 | G83: =G79+G81+G82 -> 6100 | H83: 6190 | I83: 6271
C84: EBIT Pct | D84: [%] | F84: =IF(F77=0,0,F83/F77) -> 0.6 | G84: =IF(G77=0,0,G83/G77) -> 0.61 | H84: 0.619 | I84: 0.6271
C85: Interest | D85: [£'000] | F85: =F57 -> -50 | G85: =G57 -> -100 | H85: =H57 -> -100 | I85: =I57 -> -50
C86: PBT | D86: [£'000] | F86: =SUM(F83,F85) -> 5950 | G86: =SUM(G83,G85) -> 6000 | H86: 6090 | I86: 6221
C87: Tax | D87: [£'000] | F87: =-F86*F14 -> -1130.5 | G87: =-G86*G14 -> -1140 | H87: =-H86*H14 -> -1157.1 | I87: =-I86*I14 -> -1181.99
C88: PAT | D88: [£'000] | F88: =SUM(F86:F87) -> 4819.5 | G88: =SUM(G86:G87) -> 4860 | H88: 4932.9 | I88: 5039.01
C90: Balance Sheet
C92: Fixed Assets | D92: [£'000] | E92: 10000 | F92: =F36 -> 9000 | G92: =G36 -> 8100 | H92: =H36 -> 7290 | I92: =I36 -> 6561
C94: Debtors | D94: [£'000] | E94: 900 | F94: =F43 -> 821.9178082 | G94: =G43 -> 821.9178082 | H94: =H43 -> 821.9178082 | I94: =I43 -> 821.9178082
C95: Cash | D95: [£'000] | E95: 6000 | F95: =F119 -> 12932.69521 | G95: =G119 -> 18697.44521 | H95: 24448.89521 | I95: 29229.35021
C96: Current Assets | D96: [£'000] | E96: =SUM(E94:E95) -> 6900 | F96: =SUM(F94:F95) -> 13754.61301 | G96: 19519.36301 | H96: 25270.81301 | I96: 30051.26801
C98: Creditors | D98: [£'000] | E98: -400 | F98: =F50 -> -369.8630137 | G98: =G50 -> -369.8630137 | H98: =H50 -> -369.8630137 | I98: =I50 -> -369.8630137
C99: Tax | D99: [£'000] | E99: -500 | F99: =F66 -> -565.25 | G99: =G66 -> -570 | H99: =H66 -> -578.55 | I99: =I66 -> -590.995
C100: Loans | D100: [£'000] | E100: 0 | F100: =F59 -> -1000 | G100: =G59 -> -1000 | H100: =H59 -> -1000 | I100: =I59 -> 0
C101: Current Liabilities | D101: [£'000] | E101: =SUM(E98:E100) -> -900 | F101: =SUM(F98:F100) -> -1935.113014 | G101: -1939.863014 | H101: -1948.413014 | I101: -960.8580137
C103: Net Current Assets | D103: [£'000] | E103: =E96+E101 -> 6000 | F103: =F96+F101 -> 11819.5 | G103: 17579.5 | H103: 23322.4 | I103: 29090.41
C105: Net Assets | D105: [£'000] | E105: =E103+E92 -> 16000 | F105: =F103+F92 -> 20819.5 | G105: 25679.5 | H105: 30612.4 | I105: 35651.41
C107: Retained Earnings | D107: [£'000] | E107: =E105 -> 16000 | F107: =F72 -> 20819.5 | G107: =G72 -> 25679.5 | H107: =H72 -> 30612.4 | I107: =I72 -> 35651.41
C108: Shareholders Funds | D108: [£'000] | E108: =E107 -> 16000 | F108: =F107 -> 20819.5 | G108: 25679.5 | H108: 30612.4 | I108: 35651.41
C110: Cashflow
C112: Receipts from Debtors | D112: [£'000] | F112: =-F42 -> 10078.08219 | G112: =-G42 -> 10000 | H112: =-H42 -> 10000 | I112: =-I42 -> 10000
C113: Payment to Creditors | D113: [£'000] | F113: =-F49 -> -3030.136986 | G113: =-G49 -> -3000 | H113: =-H49 -> -3000 | I113: =-I49 -> -3000
C114: Payment to Loans | D114: [£'000] | F114: =-SUM(F55:F56,F58) -> 950 | G114: =-SUM(G55:G56,G58) -> -100 | H114: =-SUM(H55:H56,H58) -> -100 | I114: =-SUM(I55:I56,I58) -> -1050
C115: Payment to Tax | D115: [£'000] | F115: =-F65 -> -1065.25 | G115: =-G65 -> -1135.25 | H115: =-H65 -> -1148.55 | I115: =-I65 -> -1169.545
C116: Net Cashflow | D116: [£'000] | F116: =SUM(F112:F115) -> 6932.695205 | G116: =SUM(G112:G115) -> 5764.75 | H116: 5751.45 | I116: 4780.455
C118: Cash b/f | D118: [£'000] | F118: =E119 -> 6000 | G118: =F119 -> 12932.69521 | H118: 18697.44521 | I118: 24448.89521
C119: Cash c/f | D119: [£'000] | E119: =E95 -> 6000 | F119: =F116+F118 -> 12932.69521 | G119: =G116+G118 -> 18697.44521 | H119: 24448.89521 | I119: 29229.35021
C121: Checks
C123: Balance Sheet Balances | F123: =F108-F105 -> 0 | G123: =G108-G105 -> 0 | H123: 0 | I123: 0
C124: Reserves matches P&L | F124: =F107-E107-F88 -> 0 | G124: =G107-F107-G88 -> 0 | H124: 0 | I124: 0
C125: Cashflow matches balance Sheet | F125: =F119-F95 -> 0 | G125: =G119-G95 -> 0 | H125: 0 | I125: 0
A127: =REPT("End of Sheet ",10) -> End of Sheet End of Sheet End of Sheet End of Sheet End of Sheet End of Sheet End of Sheet End of Sheet End of Sheet End of Sheet

Sheet 2.3 Scenario Manager
A2: 2.3 Scenario Manager
C6: Selected Scenario | E6: 1
C8: Variable | D8: Units | E8: Live | G8: 1 | H8: 2 | I8: 3 | J8: 4 | K8: 5
C10: Scenario Name | D10: [text] | E10: =INDEX(G10:K10,$E$6) -> Base Case | G10: Base Case | H10: Upside | I10: Downside | J10: GFC | K10: Moon Shot
C12: Revenue Y1 | D12: [£'000] | E12: =INDEX(G12:K12,$E$6) -> 1000 | G12: 1000 | H12: 1200 | I12: 800 | J12: 450 | K12: 1800
C13: Revenue Y2 | D13: [£'000] | E13: =INDEX(G13:K13,$E$6) -> 1200 | G13: 1200 | H13: 1440 | I13: 960 | J13: 540 | K13: 2160
C14: Revenue Y3 | D14: [£'000] | E14: =INDEX(G14:K14,$E$6) -> 1500 | G14: 1500 | H14: 1800 | I14: 1200 | J14: 675 | K14: 2700
C15: Revenue Y4 | D15: [£'000] | E15: =INDEX(G15:K15,$E$6) -> 1800 | G15: 1800 | H15: 2160 | I15: 1440 | J15: 810 | K15: 3240
C17: CoS% Y1 | D17: [%] | E17: =INDEX(G17:K17,$E$6) -> 0.7 | G17: 0.7 | H17: 0.65 | I17: 0.7 | J17: 0.8 | K17: 0.7
C18: CoS% Y2 | D18: [%] | E18: =INDEX(G18:K18,$E$6) -> 0.69 | G18: 0.69 | H18: 0.65 | I18: 0.69 | J18: 0.8 | K18: 0.69
C19: CoS% Y3 | D19: [%] | E19: =INDEX(G19:K19,$E$6) -> 0.68 | G19: 0.68 | H19: 0.65 | I19: 0.68 | J19: 0.8 | K19: 0.68
C20: CoS% Y4 | D20: [%] | E20: =INDEX(G20:K20,$E$6) -> 0.67 | G20: 0.67 | H20: 0.65 | I20: 0.67 | J20: 0.8 | K20: 0.67
C22: Interest Rate Y1 | D22: [%] | E22: =INDEX(G22:K22,$E$6) -> 0.03 | G22: 0.03 | H22: 0.03 | I22: 0.03 | J22: 0.05 | K22: 0.03
C23: Interest Rate Y2 | D23: [%] | E23: =INDEX(G23:K23,$E$6) -> 0.03 | G23: 0.03 | H23: 0.03 | I23: 0.03 | J23: 0.05 | K23: 0.03
C24: Interest Rate Y3 | D24: [%] | E24: =INDEX(G24:K24,$E$6) -> 0.03 | G24: 0.03 | H24: 0.03 | I24: 0.03 | J24: 0.05 | K24: 0.03
C25: Interest Rate Y4 | D25: [%] | E25: =INDEX(G25:K25,$E$6) -> 0.03 | G25: 0.03 | H25: 0.03 | I25: 0.03 | J25: 0.05 | K25: 0.03

Sheet 2.3 Model Linked
A2: 2.3 Basic Model (linked to scenario manager)
C4: Timeline
C6: Year | E6: Year 0 | F6: Year 1 | G6: Year 2 | H6: Year 3 | I6: Year 4
C8: Input Assumptions
C9: P&L Assumptions
C11: Revenue | D11: [£'000] | F11: =TRANSPOSE('2.3 Scenario Manager'!E12:E15) -> 1000 | G11: 1200 | H11: 1500 | I11: 1800
C12: CoS % | D12: [%] | F12: =TRANSPOSE('2.3 Scenario Manager'!E17:E20) -> 0.7 | G12: 0.69 | H12: 0.68 | I12: 0.67
C13: Overheads Pct of Revenue | D13: [%] | F13: 0.1 | G13: 0.1 | H13: 0.1 | I13: 0.1
C14: Tax Rate | D14: [%] | F14: 0.19 | G14: 0.19 | H14: 0.19 | I14: 0.19
C16: Fixed Assets
C18: Depreciation Rate | F18: 0.1 | G18: 0.1 | H18: 0.1 | I18: 0.1
C20: Working Capital
C22: Debtors Days | F22: 30 | G22: 30 | H22: 30 | I22: 30
C23: Creditors Days | F23: 45 | G23: 45 | H23: 45 | I23: 45
C25: Loan
C27: Capital Drawdown | D27: [£'000] | F27: 1000
C28: Capital Repayment | D28: [£'000] | I28: -1000
C29: Interest Rate | D29: [%] | F29: =TRANSPOSE('2.3 Scenario Manager'!E22:E25) -> 0.03 | G29: 0.03 | H29: 0.03 | I29: 0.03
C31: Workings
C32: Fixed Assets
C34: =C32&" b/f" -> Fixed Assets b/f | F34: =E36 -> 10000 | G34: =F36 -> 9000 | H34: 8100 | I34: 7290
C35: Depreciation | F35: =-F34*F18 -> -1000 | G35: =-G34*G18 -> -900 | H35: -810 | I35: -729
C36: =C32&" c/f" -> Fixed Assets c/f | E36: =E$92 -> 10000 | F36: =SUM(F34:F35) -> 9000 | G36: =SUM(G34:G35) -> 8100 | H36: 7290 | I36: 6561
C38: Debtors
C40: =C38&" b/f" -> Debtors b/f | F40: =E43 -> 900 | G40: =F43 -> 82.19178082 | H40: 98.63013699 | I40: 123.2876712
C41: Sales | F41: =F77 -> 1000 | G41: =G77 -> 1200 | H41: =H77 -> 1500 | I41: =I77 -> 1800
C42: Cash | F42: =F43-F40-F41 -> -1817.808219 | G42: =G43-G40-G41 -> -1183.561644 | H42: -1475.342466 | I42: -1775.342466
C43: =C38&" c/f" -> Debtors c/f | E43: =E$94 -> 900 | F43: =F41*F22/365 -> 82.19178082 | G43: =G41*G22/365 -> 98.63013699 | H43: 123.2876712 | I43: 147.9452055
C45: Creditors
C47: =C45&" b/f" -> Creditors b/f | F47: =E50 -> -400 | G47: =F50 -> -98.63013699 | H47: -116.8767123 | I47: -144.2465753
C48: Costs | F48: =F78+F81 -> -800 | G48: =G78+G81 -> -948 | H48: =H78+H81 -> -1170 | I48: =I78+I81 -> -1386
C49: Cash | F49: =F50-F47-F48 -> 1101.369863 | G49: =G50-G47-G48 -> 929.7534247 | H49: 1142.630137 | I49: 1359.369863
C50: =C45&" c/f" -> Creditors c/f | E50: =E98 -> -400 | F50: =F48*F23/365 -> -98.63013699 | G50: =G48*G23/365 -> -116.8767123 | H50: -144.2465753 | I50: -170.8767123
C52: Loan
C54: =C52&" b/f" -> Loan b/f | F54: =E59 -> 0 | G54: =F59 -> -1000 | H54: -1000 | I54: -1000
C55: Capital Drawn | F55: =-F27 -> -1000 | G55: =-G27 -> 0 | H55: 0 | I55: 0
C56: Capital Repaid | F56: =-F28 -> 0 | G56: 0 | H56: 0 | I56: 1000
C57: Interest Charged | F57: =(F54+SUM(F55:F56)/2)*F29 -> -15 | G57: =(G54+SUM(G55:G56)/2)*G29 -> -30 | H57: -30 | I57: -15
C58: Interest Paid | F58: =-F57 -> 15 | G58: =-G57 -> 30 | H58: 30 | I58: 15
C59: =C52&" c/f" -> Loan c/f | E59: =E100 -> 0 | F59: =SUM(F54:F58) -> -1000 | G59: =SUM(G54:G58) -> -1000 | H59: -1000 | I59: 0
C61: Tax
C63: =C61&" b/f" -> Tax b/f | F63: =E66 -> -500 | G63: =F66 -> 77.425 | H63: 64.41 | I63: 48.45
C64: Charge | F64: =F87 -> 154.85 | G64: =G87 -> 128.82 | H64: =H87 -> 96.9 | I64: =I87 -> 62.7
C65: Cash | F65: =-F64/2-E66 -> 422.575 | G65: =-F64/2-G64/2 -> -141.835 | H65: =-G64/2-H64/2 -> -112.86 | I65: -79.8
C66: =C61&" c/f" -> Tax c/f | E66: =E99 -> -500 | F66: =SUM(F63:F65) -> 77.425 | G66: =SUM(G63:G65) -> 64.41 | H66: 48.45 | I66: 31.35
C68: Reserves
C70: =C68&" b/f" -> Reserves b/f | F70: =E72 -> 16000 | G70: =F72 -> 15339.85 | H70: 14790.67 | I70: 14377.57
C71: Profit in period | F71: =F88 -> -660.15 | G71: =G88 -> -549.18 | H71: =H88 -> -413.1 | I71: =I88 -> -267.3
C72: =C68&" c/f" -> Reserves c/f | E72: =E107 -> 16000 | F72: =SUM(F70:F71) -> 15339.85 | G72: =SUM(G70:G71) -> 14790.67 | H72: 14377.57 | I72: 14110.27
C74: Financial Statements
C75: P&L
C77: Revenue | D77: [£'000] | F77: =F11 -> 1000 | G77: =G11 -> 1200 | H77: =H11 -> 1500 | I77: =I11 -> 1800
C78: Cost of Sales | D78: [£'000] | F78: =-F77*F12 -> -700 | G78: =-G77*G12 -> -828 | H78: =-H77*H12 -> -1020 | I78: =-I77*I12 -> -1206
C79: Gross Margin | D79: [£'000] | F79: =SUM(F77:F78) -> 300 | G79: =SUM(G77:G78) -> 372 | H79: 480 | I79: 594
C80: Gross Margin Pct | D80: [%] | F80: =IF(F77=0,0,F79/F77) -> 0.3 | G80: =IF(G77=0,0,G79/G77) -> 0.31 | H80: 0.32 | I80: 0.33
C81: Overheads | D81: [£'000] | F81: =-F77*F13 -> -100 | G81: =-G77*G13 -> -120 | H81: =-H77*H13 -> -150 | I81: =-I77*I13 -> -180
C82: Depreciation | D82: [£'000] | F82: =F35 -> -1000 | G82: =G35 -> -900 | H82: =H35 -> -810 | I82: =I35 -> -729
C83: EBIT | D83: [£'000] | F83: =F79+F81+F82 -> -800 | G83: =G79+G81+G82 -> -648 | H83: -480 | I83: -315
C84: EBIT Pct | D84: [%] | F84: =IF(F77=0,0,F83/F77) -> -0.8 | G84: =IF(G77=0,0,G83/G77) -> -0.54 | H84: -0.32 | I84: -0.175
C85: Interest | D85: [£'000] | F85: =F57 -> -15 | G85: =G57 -> -30 | H85: =H57 -> -30 | I85: =I57 -> -15
C86: PBT | D86: [£'000] | F86: =SUM(F83,F85) -> -815 | G86: =SUM(G83,G85) -> -678 | H86: -510 | I86: -330
C87: Tax | D87: [£'000] | F87: =-F86*F14 -> 154.85 | G87: =-G86*G14 -> 128.82 | H87: =-H86*H14 -> 96.9 | I87: =-I86*I14 -> 62.7
C88: PAT | D88: [£'000] | F88: =SUM(F86:F87) -> -660.15 | G88: =SUM(G86:G87) -> -549.18 | H88: -413.1 | I88: -267.3
C90: Balance Sheet
C92: Fixed Assets | D92: [£'000] | E92: 10000 | F92: =F36 -> 9000 | G92: =G36 -> 8100 | H92: =H36 -> 7290 | I92: =I36 -> 6561
C94: Debtors | D94: [£'000] | E94: 900 | F94: =F43 -> 82.19178082 | G94: =G43 -> 98.63013699 | H94: =H43 -> 123.2876712 | I94: =I43 -> 147.9452055
C95: Cash | D95: [£'000] | E95: 6000 | F95: =F119 -> 7278.863356 | G95: =G119 -> 7644.506575 | H95: 8060.078904 | I95: 7540.851507
C96: Current Assets | D96: [£'000] | E96: =SUM(E94:E95) -> 6900 | F96: =SUM(F94:F95) -> 7361.055137 | G96: 7743.136712 | H96: 8183.366575 | I96: 7688.796712
C98: Creditors | D98: [£'000] | E98: -400 | F98: =F50 -> -98.63013699 | G98: =G50 -> -116.8767123 | H98: =H50 -> -144.2465753 | I98: =I50 -> -170.8767123
C99: Tax | D99: [£'000] | E99: -500 | F99: =F66 -> 77.425 | G99: =G66 -> 64.41 | H99: =H66 -> 48.45 | I99: =I66 -> 31.35
C100: Loans | D100: [£'000] | E100: 0 | F100: =F59 -> -1000 | G100: =G59 -> -1000 | H100: =H59 -> -1000 | I100: =I59 -> 0
C101: Current Liabilities | D101: [£'000] | E101: =SUM(E98:E100) -> -900 | F101: =SUM(F98:F100) -> -1021.205137 | G101: -1052.466712 | H101: -1095.796575 | I101: -139.5267123
C103: Net Current Assets | D103: [£'000] | E103: =E96+E101 -> 6000 | F103: =F96+F101 -> 6339.85 | G103: 6690.67 | H103: 7087.57 | I103: 7549.27
C105: Net Assets | D105: [£'000] | E105: =E103+E92 -> 16000 | F105: =F103+F92 -> 15339.85 | G105: 14790.67 | H105: 14377.57 | I105: 14110.27
C107: Retained Earnings | D107: [£'000] | E107: =E105 -> 16000 | F107: =F72 -> 15339.85 | G107: =G72 -> 14790.67 | H107: =H72 -> 14377.57 | I107: =I72 -> 14110.27
C108: Shareholders Funds | D108: [£'000] | E108: =E107 -> 16000 | F108: =F107 -> 15339.85 | G108: 14790.67 | H108: 14377.57 | I108: 14110.27
C110: Cashflow
C112: Receipts from Debtors | D112: [£'000] | F112: =-F42 -> 1817.808219 | G112: =-G42 -> 1183.561644 | H112: =-H42 -> 1475.342466 | I112: =-I42 -> 1775.342466
C113: Payment to Creditors | D113: [£'000] | F113: =-F49 -> -1101.369863 | G113: =-G49 -> -929.7534247 | H113: =-H49 -> -1142.630137 | I113: =-I49 -> -1359.369863
C114: Payment to Loans | D114: [£'000] | F114: =-SUM(F55:F56,F58) -> 985 | G114: =-SUM(G55:G56,G58) -> -30 | H114: =-SUM(H55:H56,H58) -> -30 | I114: =-SUM(I55:I56,I58) -> -1015
C115: Payment to Tax | D115: [£'000] | F115: =-F65 -> -422.575 | G115: =-G65 -> 141.835 | H115: =-H65 -> 112.86 | I115: =-I65 -> 79.8
C116: Net Cashflow | D116: [£'000] | F116: =SUM(F112:F115) -> 1278.863356 | G116: =SUM(G112:G115) -> 365.6432192 | H116: 415.5723288 | I116: -519.2273973
C118: Cash b/f | D118: [£'000] | F118: =E119 -> 6000 | G118: =F119 -> 7278.863356 | H118: 7644.506575 | I118: 8060.078904
C119: Cash c/f | D119: [£'000] | E119: =E95 -> 6000 | F119: =F116+F118 -> 7278.863356 | G119: =G116+G118 -> 7644.506575 | H119: 8060.078904 | I119: 7540.851507
C121: Checks
C123: Balance Sheet Balances | F123: =F108-F105 -> 0 | G123: =G108-G105 -> 0 | H123: 0 | I123: 0
C124: Reserves matches P&L | F124: =F107-E107-F88 -> 0 | G124: =G107-F107-G88 -> 0 | H124: 0 | I124: 7.389644452e-13
C125: Cashflow matches balance Sheet | F125: =F119-F95 -> 0 | G125: =G119-G95 -> 0 | H125: 0 | I125: 0
A127: =REPT("End of Sheet ",10) -> End of Sheet End of Sheet End of Sheet End of Sheet End of Sheet End of Sheet End of Sheet End of Sheet End of Sheet End of Sheet

Sheet 2.4.1 Scenario Manager (Ex)
A2: 2.4.1 Scenario Manager (Example)
C6: Selected Scenario
C8: Variable | D8: Units | E8: Live | G8: 1 | H8: 2 | I8: 3 | J8: 4 | K8: 5
C10: Scenario Name | D10: [text]
C12: Revenue Y1 | D12: [£'000]
C13: Revenue Y2 | D13: [£'000]
C14: Revenue Y3 | D14: [£'000]
C15: Revenue Y4 | D15: [£'000]
C17: CoS% Y1 | D17: [%]
C18: CoS% Y2 | D18: [%]
C19: CoS% Y3 | D19: [%]
C20: CoS% Y4 | D20: [%]
C22: Interest Rate Y1 | D22: [%]
C23: Interest Rate Y2 | D23: [%]
C24: Interest Rate Y3 | D24: [%]
C25: Interest Rate Y4 | D25: [%]

Sheet 2.4.2 Model (Ex)
A2: 2.4.1 Basic Model (Example)
C4: Timeline
C6: Year | E6: Year 0 | F6: Year 1 | G6: Year 2 | H6: Year 3 | I6: Year 4
C8: Input Assumptions
C9: P&L Assumptions
C11: Revenue | D11: [£'000] | F11: 10000 | G11: 10000 | H11: 10000 | I11: 10000
C12: CoS % | D12: [%] | F12: 0.2 | G12: 0.2 | H12: 0.2 | I12: 0.2
C13: Overheads Pct of Revenue | D13: [%] | F13: 0.1 | G13: 0.1 | H13: 0.1 | I13: 0.1
C14: Tax Rate | D14: [%] | F14: 0.19 | G14: 0.19 | H14: 0.19 | I14: 0.19
C16: Fixed Assets
C18: Depreciation Rate | F18: 0.1 | G18: 0.1 | H18: 0.1 | I18: 0.1
C20: Working Capital
C22: Debtors Days | F22: 30 | G22: 30 | H22: 30 | I22: 30
C23: Creditors Days | F23: 45 | G23: 45 | H23: 45 | I23: 45
C25: Loan
C27: Capital Drawdown | D27: [£'000] | F27: 1000
C28: Capital Repayment | D28: [£'000] | I28: -1000
C29: Interest Rate | D29: [%] | F29: 0.1 | G29: 0.1 | H29: 0.1 | I29: 0.1
C31: Workings
C32: Fixed Assets
C34: =C32&" b/f" -> Fixed Assets b/f | F34: =E36 -> 10000 | G34: =F36 -> 9000 | H34: 8100 | I34: 7290
C35: Depreciation | F35: =-F34*F18 -> -1000 | G35: =-G34*G18 -> -900 | H35: -810 | I35: -729
C36: =C32&" c/f" -> Fixed Assets c/f | E36: =E$92 -> 10000 | F36: =SUM(F34:F35) -> 9000 | G36: =SUM(G34:G35) -> 8100 | H36: 7290 | I36: 6561
C38: Debtors
C40: =C38&" b/f" -> Debtors b/f | F40: =E43 -> 900 | G40: =F43 -> 821.9178082 | H40: 821.9178082 | I40: 821.9178082
C41: Sales | F41: =F77 -> 10000 | G41: =G77 -> 10000 | H41: =H77 -> 10000 | I41: =I77 -> 10000
C42: Cash | F42: =F43-F40-F41 -> -10078.08219 | G42: =G43-G40-G41 -> -10000 | H42: -10000 | I42: -10000
C43: =C38&" c/f" -> Debtors c/f | E43: =E$94 -> 900 | F43: =F41*F22/365 -> 821.9178082 | G43: =G41*G22/365 -> 821.9178082 | H43: 821.9178082 | I43: 821.9178082
C45: Creditors
C47: =C45&" b/f" -> Creditors b/f | F47: =E50 -> -400 | G47: =F50 -> -369.8630137 | H47: -369.8630137 | I47: -369.8630137
C48: Costs | F48: =F78+F81 -> -3000 | G48: =G78+G81 -> -3000 | H48: =H78+H81 -> -3000 | I48: =I78+I81 -> -3000
C49: Cash | F49: =F50-F47-F48 -> 3030.136986 | G49: =G50-G47-G48 -> 3000 | H49: 3000 | I49: 3000
C50: =C45&" c/f" -> Creditors c/f | E50: =E98 -> -400 | F50: =F48*F23/365 -> -369.8630137 | G50: =G48*G23/365 -> -369.8630137 | H50: -369.8630137 | I50: -369.8630137
C52: Loan
C54: =C52&" b/f" -> Loan b/f | F54: =E59 -> 0 | G54: =F59 -> -1000 | H54: -1000 | I54: -1000
C55: Capital Drawn | F55: =-F27 -> -1000 | G55: =-G27 -> 0 | H55: 0 | I55: 0
C56: Capital Repaid | F56: =-F28 -> 0 | G56: 0 | H56: 0 | I56: 1000
C57: Interest Charged | F57: =(F54+SUM(F55:F56)/2)*F29 -> -50 | G57: =(G54+SUM(G55:G56)/2)*G29 -> -100 | H57: -100 | I57: -50
C58: Interest Paid | F58: =-F57 -> 50 | G58: =-G57 -> 100 | H58: 100 | I58: 50
C59: =C52&" c/f" -> Loan c/f | E59: =E100 -> 0 | F59: =SUM(F54:F58) -> -1000 | G59: =SUM(G54:G58) -> -1000 | H59: -1000 | I59: 0
C61: Tax
C63: =C61&" b/f" -> Tax b/f | F63: =E66 -> -500 | G63: =F66 -> -565.25 | H63: -570 | I63: -578.55
C64: Charge | F64: =F87 -> -1130.5 | G64: =G87 -> -1140 | H64: =H87 -> -1157.1 | I64: =I87 -> -1181.99
C65: Cash | F65: =-F64/2-E66 -> 1065.25 | G65: =-F64/2-G64/2 -> 1135.25 | H65: =-G64/2-H64/2 -> 1148.55 | I65: 1169.545
C66: =C61&" c/f" -> Tax c/f | E66: =E99 -> -500 | F66: =SUM(F63:F65) -> -565.25 | G66: =SUM(G63:G65) -> -570 | H66: -578.55 | I66: -590.995
C68: Reserves
C70: =C68&" b/f" -> Reserves b/f | F70: =E72 -> 16000 | G70: =F72 -> 20819.5 | H70: 25679.5 | I70: 30612.4
C71: Profit in period | F71: =F88 -> 4819.5 | G71: =G88 -> 4860 | H71: =H88 -> 4932.9 | I71: =I88 -> 5039.01
C72: =C68&" c/f" -> Reserves c/f | E72: =E107 -> 16000 | F72: =SUM(F70:F71) -> 20819.5 | G72: =SUM(G70:G71) -> 25679.5 | H72: 30612.4 | I72: 35651.41
C74: Financial Statements
C75: P&L
C77: Revenue | D77: [£'000] | F77: =F11 -> 10000 | G77: =G11 -> 10000 | H77: =H11 -> 10000 | I77: =I11 -> 10000
C78: Cost of Sales | D78: [£'000] | F78: =-F77*F12 -> -2000 | G78: =-G77*G12 -> -2000 | H78: =-H77*H12 -> -2000 | I78: =-I77*I12 -> -2000
C79: Gross Margin | D79: [£'000] | F79: =SUM(F77:F78) -> 8000 | G79: =SUM(G77:G78) -> 8000 | H79: 8000 | I79: 8000
C80: Gross Margin Pct | D80: [%] | F80: =IF(F77=0,0,F79/F77) -> 0.8 | G80: =IF(G77=0,0,G79/G77) -> 0.8 | H80: 0.8 | I80: 0.8
C81: Overheads | D81: [£'000] | F81: =-F77*F13 -> -1000 | G81: =-G77*G13 -> -1000 | H81: =-H77*H13 -> -1000 | I81: =-I77*I13 -> -1000
C82: Depreciation | D82: [£'000] | F82: =F35 -> -1000 | G82: =G35 -> -900 | H82: =H35 -> -810 | I82: =I35 -> -729
C83: EBIT | D83: [£'000] | F83: =F79+F81+F82 -> 6000 | G83: =G79+G81+G82 -> 6100 | H83: 6190 | I83: 6271
C84: EBIT Pct | D84: [%] | F84: =IF(F77=0,0,F83/F77) -> 0.6 | G84: =IF(G77=0,0,G83/G77) -> 0.61 | H84: 0.619 | I84: 0.6271
C85: Interest | D85: [£'000] | F85: =F57 -> -50 | G85: =G57 -> -100 | H85: =H57 -> -100 | I85: =I57 -> -50
C86: PBT | D86: [£'000] | F86: =SUM(F83,F85) -> 5950 | G86: =SUM(G83,G85) -> 6000 | H86: 6090 | I86: 6221
C87: Tax | D87: [£'000] | F87: =-F86*F14 -> -1130.5 | G87: =-G86*G14 -> -1140 | H87: =-H86*H14 -> -1157.1 | I87: =-I86*I14 -> -1181.99
C88: PAT | D88: [£'000] | F88: =SUM(F86:F87) -> 4819.5 | G88: =SUM(G86:G87) -> 4860 | H88: 4932.9 | I88: 5039.01
C90: Balance Sheet
C92: Fixed Assets | D92: [£'000] | E92: 10000 | F92: =F36 -> 9000 | G92: =G36 -> 8100 | H92: =H36 -> 7290 | I92: =I36 -> 6561
C94: Debtors | D94: [£'000] | E94: 900 | F94: =F43 -> 821.9178082 | G94: =G43 -> 821.9178082 | H94: =H43 -> 821.9178082 | I94: =I43 -> 821.9178082
C95: Cash | D95: [£'000] | E95: 6000 | F95: =F119 -> 12932.69521 | G95: =G119 -> 18697.44521 | H95: 24448.89521 | I95: 29229.35021
C96: Current Assets | D96: [£'000] | E96: =SUM(E94:E95) -> 6900 | F96: =SUM(F94:F95) -> 13754.61301 | G96: 19519.36301 | H96: 25270.81301 | I96: 30051.26801
C98: Creditors | D98: [£'000] | E98: -400 | F98: =F50 -> -369.8630137 | G98: =G50 -> -369.8630137 | H98: =H50 -> -369.8630137 | I98: =I50 -> -369.8630137
C99: Tax | D99: [£'000] | E99: -500 | F99: =F66 -> -565.25 | G99: =G66 -> -570 | H99: =H66 -> -578.55 | I99: =I66 -> -590.995
C100: Loans | D100: [£'000] | E100: 0 | F100: =F59 -> -1000 | G100: =G59 -> -1000 | H100: =H59 -> -1000 | I100: =I59 -> 0
C101: Current Liabilities | D101: [£'000] | E101: =SUM(E98:E100) -> -900 | F101: =SUM(F98:F100) -> -1935.113014 | G101: -1939.863014 | H101: -1948.413014 | I101: -960.8580137
C103: Net Current Assets | D103: [£'000] | E103: =E96+E101 -> 6000 | F103: =F96+F101 -> 11819.5 | G103: 17579.5 | H103: 23322.4 | I103: 29090.41
C105: Net Assets | D105: [£'000] | E105: =E103+E92 -> 16000 | F105: =F103+F92 -> 20819.5 | G105: 25679.5 | H105: 30612.4 | I105: 35651.41
C107: Retained Earnings | D107: [£'000] | E107: =E105 -> 16000 | F107: =F72 -> 20819.5 | G107: =G72 -> 25679.5 | H107: =H72 -> 30612.4 | I107: =I72 -> 35651.41
C108: Shareholders Funds | D108: [£'000] | E108: =E107 -> 16000 | F108: =F107 -> 20819.5 | G108: 25679.5 | H108: 30612.4 | I108: 35651.41
C110: Cashflow
C112: Receipts from Debtors | D112: [£'000] | F112: =-F42 -> 10078.08219 | G112: =-G42 -> 10000 | H112: =-H42 -> 10000 | I112: =-I42 -> 10000
C113: Payment to Creditors | D113: [£'000] | F113: =-F49 -> -3030.136986 | G113: =-G49 -> -3000 | H113: =-H49 -> -3000 | I113: =-I49 -> -3000
C114: Payment to Loans | D114: [£'000] | F114: =-SUM(F55:F56,F58) -> 950 | G114: =-SUM(G55:G56,G58) -> -100 | H114: =-SUM(H55:H56,H58) -> -100 | I114: =-SUM(I55:I56,I58) -> -1050
C115: Payment to Tax | D115: [£'000] | F115: =-F65 -> -1065.25 | G115: =-G65 -> -1135.25 | H115: =-H65 -> -1148.55 | I115: =-I65 -> -1169.545
C116: Net Cashflow | D116: [£'000] | F116: =SUM(F112:F115) -> 6932.695205 | G116: =SUM(G112:G115) -> 5764.75 | H116: 5751.45 | I116: 4780.455
C118: Cash b/f | D118: [£'000] | F118: =E119 -> 6000 | G118: =F119 -> 12932.69521 | H118: 18697.44521 | I118: 24448.89521
C119: Cash c/f | D119: [£'000] | E119: =E95 -> 6000 | F119: =F116+F118 -> 12932.69521 | G119: =G116+G118 -> 18697.44521 | H119: 24448.89521 | I119: 29229.35021
C121: Checks
C123: Balance Sheet Balances | F123: =F108-F105 -> 0 | G123: =G108-G105 -> 0 | H123: 0 | I123: 0
C124: Reserves matches P&L | F124: =F107-E107-F88 -> 0 | G124: =G107-F107-G88 -> 0 | H124: 0 | I124: 0
C125: Cashflow matches balance Sheet | F125: =F119-F95 -> 0 | G125: =G119-G95 -> 0 | H125: 0 | I125: 0
A127: =REPT("End of Sheet ",10) -> End of Sheet End of Sheet End of Sheet End of Sheet End of Sheet End of Sheet End of Sheet End of Sheet End of Sheet End of Sheet

Sheet Part 3

Sheet 3.1 Conditional Formatting
A2: 3.0 Conditional Formatting
C6: Selected Scenario | E6: 2
C8: Variable | D8: Units | E8: Live | G8: 1 | H8: 2 | I8: 3 | J8: 4 | K8: 5
C10: Scenario Name | D10: [text] | E10: =INDEX(G10:K10,$E$6) -> Upside | G10: Base Case | H10: Upside | I10: Downside | J10: GFC | K10: Moon Shot
C12: Revenue Y1 | D12: [£'000] | E12: =INDEX(G12:K12,$E$6) -> 1200 | G12: 1000 | H12: 1200 | I12: 800 | J12: 450 | K12: 1800
C13: Revenue Y2 | D13: [£'000] | E13: =INDEX(G13:K13,$E$6) -> 1440 | G13: 1200 | H13: 1440 | I13: 960 | J13: 540 | K13: 2160
C14: Revenue Y3 | D14: [£'000] | E14: =INDEX(G14:K14,$E$6) -> 1800 | G14: 1500 | H14: 1800 | I14: 1200 | J14: 675 | K14: 2700
C15: Revenue Y4 | D15: [£'000] | E15: =INDEX(G15:K15,$E$6) -> 2160 | G15: 1800 | H15: 2160 | I15: 1440 | J15: 810 | K15: 3240
C17: CoS% Y1 | D17: [%] | E17: =INDEX(G17:K17,$E$6) -> 0.65 | G17: 0.7 | H17: 0.65 | I17: 0.7 | J17: 0.8 | K17: 0.7
C18: CoS% Y2 | D18: [%] | E18: =INDEX(G18:K18,$E$6) -> 0.65 | G18: 0.69 | H18: 0.65 | I18: 0.69 | J18: 0.8 | K18: 0.69
C19: CoS% Y3 | D19: [%] | E19: =INDEX(G19:K19,$E$6) -> 0.65 | G19: 0.68 | H19: 0.65 | I19: 0.68 | J19: 0.8 | K19: 0.68
C20: CoS% Y4 | D20: [%] | E20: =INDEX(G20:K20,$E$6) -> 0.65 | G20: 0.67 | H20: 0.65 | I20: 0.67 | J20: 0.8 | K20: 0.67
C22: Interest Rate Y1 | D22: [%] | E22: =INDEX(G22:K22,$E$6) -> 0.03 | G22: 0.03 | H22: 0.03 | I22: 0.03 | J22: 0.05 | K22: 0.03
C23: Interest Rate Y2 | D23: [%] | E23: =INDEX(G23:K23,$E$6) -> 0.03 | G23: 0.03 | H23: 0.03 | I23: 0.03 | J23: 0.05 | K23: 0.03
C24: Interest Rate Y3 | D24: [%] | E24: =INDEX(G24:K24,$E$6) -> 0.03 | G24: 0.03 | H24: 0.03 | I24: 0.03 | J24: 0.05 | K24: 0.03
C25: Interest Rate Y4 | D25: [%] | E25: =INDEX(G25:K25,$E$6) -> 0.03 | G25: 0.03 | H25: 0.03 | I25: 0.03 | J25: 0.05 | K25: 0.03

Sheet 3.2 Defaults
A2: 3.2 Blanks default to base case
C6: Selected Scenario | E6: 3
C8: Variable | D8: Units | E8: Live | G8: 1 | H8: 2 | I8: 3 | J8: 4 | K8: 5
C10: Scenario Name | D10: [text] | E10: =INDEX(G10:K10,$E$6) -> Downside | G10: Base Case | H10: Upside | I10: Downside | J10: GFC | K10: Moon Shot
C12: Revenue Y1 | D12: [£'000] | E12: =IF(INDEX(G12:K12,$E$6)="",G12,INDEX(G12:K12,$E$6)) -> 800 | G12: 1000 | H12: 1200 | I12: 800 | J12: 450 | K12: 1800
C13: Revenue Y2 | D13: [£'000] | E13: =IF(INDEX(G13:K13,$E$6)="",G13,INDEX(G13:K13,$E$6)) -> 960 | G13: 1200 | H13: 1440 | I13: 960 | J13: 540 | K13: 2160
C14: Revenue Y3 | D14: [£'000] | E14: =IF(INDEX(G14:K14,$E$6)="",G14,INDEX(G14:K14,$E$6)) -> 1200 | G14: 1500 | H14: 1800 | I14: 1200 | J14: 675 | K14: 2700
C15: Revenue Y4 | D15: [£'000] | E15: =IF(INDEX(G15:K15,$E$6)="",G15,INDEX(G15:K15,$E$6)) -> 1440 | G15: 1800 | H15: 2160 | I15: 1440 | J15: 810 | K15: 3240
C17: CoS% Y1 | D17: [%] | E17: =IF(INDEX(G17:K17,$E$6)="",G17,INDEX(G17:K17,$E$6)) -> 0.7 | G17: 0.7 | H17: 0.65 | J17: 0.8
C18: CoS% Y2 | D18: [%] | E18: =IF(INDEX(G18:K18,$E$6)="",G18,INDEX(G18:K18,$E$6)) -> 0.69 | G18: 0.69 | H18: 0.65 | J18: 0.8
C19: CoS% Y3 | D19: [%] | E19: =IF(INDEX(G19:K19,$E$6)="",G19,INDEX(G19:K19,$E$6)) -> 0.68 | G19: 0.68 | H19: 0.65 | J19: 0.8
C20: CoS% Y4 | D20: [%] | E20: =IF(INDEX(G20:K20,$E$6)="",G20,INDEX(G20:K20,$E$6)) -> 0.67 | G20: 0.67 | H20: 0.65 | J20: 0.8
C22: Interest Rate Y1 | D22: [%] | E22: =IF(INDEX(G22:K22,$E$6)="",G22,INDEX(G22:K22,$E$6)) -> 0.03 | G22: 0.03 | J22: 0.05
C23: Interest Rate Y2 | D23: [%] | E23: =IF(INDEX(G23:K23,$E$6)="",G23,INDEX(G23:K23,$E$6)) -> 0.03 | G23: 0.03 | J23: 0.05
C24: Interest Rate Y3 | D24: [%] | E24: =IF(INDEX(G24:K24,$E$6)="",G24,INDEX(G24:K24,$E$6)) -> 0.03 | G24: 0.03 | J24: 0.05
C25: Interest Rate Y4 | D25: [%] | E25: =IF(INDEX(G25:K25,$E$6)="",G25,INDEX(G25:K25,$E$6)) -> 0.03 | G25: 0.03 | J25: 0.05

Sheet 3.2.1 Defaults + CondFmt
A2: 3.2 Blanks default to base case + Conditional Formatting
C6: Selected Scenario | E6: 3
C8: Variable | D8: Units | E8: Live | G8: 1 | H8: 2 | I8: 3 | J8: 4 | K8: 5
C10: Scenario Name | D10: [text] | E10: =INDEX(G10:K10,$E$6) -> Downside | G10: Base Case | H10: Upside | I10: Downside | J10: GFC | K10: Moon Shot
C12: Revenue Y1 | D12: [£'000] | E12: =IF(INDEX(G12:K12,$E$6)="",G12,INDEX(G12:K12,$E$6)) -> 800 | G12: 1000 | H12: 1200 | I12: 800 | J12: 450 | K12: 1800
C13: Revenue Y2 | D13: [£'000] | E13: =IF(INDEX(G13:K13,$E$6)="",G13,INDEX(G13:K13,$E$6)) -> 960 | G13: 1200 | H13: 1440 | I13: 960 | J13: 540 | K13: 2160
C14: Revenue Y3 | D14: [£'000] | E14: =IF(INDEX(G14:K14,$E$6)="",G14,INDEX(G14:K14,$E$6)) -> 1200 | G14: 1500 | H14: 1800 | I14: 1200 | J14: 675 | K14: 2700
C15: Revenue Y4 | D15: [£'000] | E15: =IF(INDEX(G15:K15,$E$6)="",G15,INDEX(G15:K15,$E$6)) -> 1440 | G15: 1800 | H15: 2160 | I15: 1440 | J15: 810 | K15: 3240
C17: CoS% Y1 | D17: [%] | E17: =IF(INDEX(G17:K17,$E$6)="",G17,INDEX(G17:K17,$E$6)) -> 0.7 | G17: 0.7 | H17: 0.65 | J17: 0.8
C18: CoS% Y2 | D18: [%] | E18: =IF(INDEX(G18:K18,$E$6)="",G18,INDEX(G18:K18,$E$6)) -> 0.69 | G18: 0.69 | H18: 0.65 | J18: 0.8
C19: CoS% Y3 | D19: [%] | E19: =IF(INDEX(G19:K19,$E$6)="",G19,INDEX(G19:K19,$E$6)) -> 0.68 | G19: 0.68 | H19: 0.65 | J19: 0.8
C20: CoS% Y4 | D20: [%] | E20: =IF(INDEX(G20:K20,$E$6)="",G20,INDEX(G20:K20,$E$6)) -> 0.67 | G20: 0.67 | H20: 0.65 | J20: 0.8
C22: Interest Rate Y1 | D22: [%] | E22: =IF(INDEX(G22:K22,$E$6)="",G22,INDEX(G22:K22,$E$6)) -> 0.03 | G22: 0.03 | J22: 0.05
C23: Interest Rate Y2 | D23: [%] | E23: =IF(INDEX(G23:K23,$E$6)="",G23,INDEX(G23:K23,$E$6)) -> 0.03 | G23: 0.03 | J23: 0.05
C24: Interest Rate Y3 | D24: [%] | E24: =IF(INDEX(G24:K24,$E$6)="",G24,INDEX(G24:K24,$E$6)) -> 0.03 | G24: 0.03 | J24: 0.05
C25: Interest Rate Y4 | D25: [%] | E25: =IF(INDEX(G25:K25,$E$6)="",G25,INDEX(G25:K25,$E$6)) -> 0.03 | G25: 0.03 | J25: 0.05

Sheet 3.3.1 Timeline Data
A2: 3.3.1 Timeline data to choose in Scenario
B4: Month | E4: M1 | F4: M2 | G4: M3 | H4: M4 | I4: M5 | J4: M6 | K4: M7 | L4: M8 | M4: M9 | N4: M10 | O4: M11 | P4: M12 | Q4: M13 | R4: M14 | S4: M15 | T4: M16 | U4: M17 | V4: M18 | W4: M19 | X4: M20 | Y4: M21 | Z4: M22 | AA4: M23 | AB4: M24
B6: Cashflow Profiles
B8: Options
B9: Traditional | E9: 1000000 | I9: 50000 | J9: 50000 | K9: 50000 | L9: 50000 | M9: 50000 | N9: 50000 | O9: 50000 | P9: 50000 | Q9: 50000 | R9: 50000 | S9: 50000 | T9: 50000 | U9: 50000 | V9: 50000 | W9: 50000 | X9: 50000
B10: Modular | E10: 1000000 | I10: 500000 | L10: 500000 | U10: 20000 | V10: 20000 | W10: 20000 | X10: 20000
B11: Spare 1
B12: Spare 2
B13: Spare 3

Sheet 3.3.2 Nested
A2: 3.3.2 Scenarios within Scenarios
C6: Selected Scenario | E6: 3
C8: Variable | D8: Units | E8: Live | G8: 1 | H8: 2 | I8: 3 | J8: 4 | K8: 5
C10: Scenario Name | D10: [text] | E10: =INDEX(G10:K10,$E$6) -> Modular + Int | G10: Traditional Build | H10: Modular Build | I10: Modular + Int
C12: Build Profile | D12: [Text] | E12: =IF(INDEX(G12:K12,$E$6)="",G12,INDEX(G12:K12,$E$6)) -> Modular | G12: Traditional | H12: Modular | I12: Modular
C14: Revenue Y1 | D14: [£'000] | E14: =IF(INDEX(G14:K14,$E$6)="",G14,INDEX(G14:K14,$E$6)) -> 1000 | G14: 1000
C15: Revenue Y2 | D15: [£'000] | E15: =IF(INDEX(G15:K15,$E$6)="",G15,INDEX(G15:K15,$E$6)) -> 1200 | G15: 1200
C16: Revenue Y3 | D16: [£'000] | E16: =IF(INDEX(G16:K16,$E$6)="",G16,INDEX(G16:K16,$E$6)) -> 1500 | G16: 1500
C17: Revenue Y4 | D17: [£'000] | E17: =IF(INDEX(G17:K17,$E$6)="",G17,INDEX(G17:K17,$E$6)) -> 1800 | G17: 1800
C19: CoS% Y1 | D19: [%] | E19: =IF(INDEX(G19:K19,$E$6)="",G19,INDEX(G19:K19,$E$6)) -> 0.7 | G19: 0.7
C20: CoS% Y2 | D20: [%] | E20: =IF(INDEX(G20:K20,$E$6)="",G20,INDEX(G20:K20,$E$6)) -> 0.69 | G20: 0.69
C21: CoS% Y3 | D21: [%] | E21: =IF(INDEX(G21:K21,$E$6)="",G21,INDEX(G21:K21,$E$6)) -> 0.68 | G21: 0.68
C22: CoS% Y4 | D22: [%] | E22: =IF(INDEX(G22:K22,$E$6)="",G22,INDEX(G22:K22,$E$6)) -> 0.67 | G22: 0.67
C24: Interest Rate Y1 | D24: [%] | E24: =IF(INDEX(G24:K24,$E$6)="",G24,INDEX(G24:K24,$E$6)) -> 0.04 | G24: 0.03 | I24: 0.04
C25: Interest Rate Y2 | D25: [%] | E25: =IF(INDEX(G25:K25,$E$6)="",G25,INDEX(G25:K25,$E$6)) -> 0.04 | G25: 0.03 | I25: 0.04
C26: Interest Rate Y3 | D26: [%] | E26: =IF(INDEX(G26:K26,$E$6)="",G26,INDEX(G26:K26,$E$6)) -> 0.04 | G26: 0.03 | I26: 0.04
C27: Interest Rate Y4 | D27: [%] | E27: =IF(INDEX(G27:K27,$E$6)="",G27,INDEX(G27:K27,$E$6)) -> 0.04 | G27: 0.03 | I27: 0.04

Sheet 3.3.3 Updated Source
A2: 3.3.3 Updated Source Sheet
B4: Month | E4: M1 | F4: M2 | G4: M3 | H4: M4 | I4: M5 | J4: M6 | K4: M7 | L4: M8 | M4: M9 | N4: M10 | O4: M11 | P4: M12 | Q4: M13 | R4: M14 | S4: M15 | T4: M16 | U4: M17 | V4: M18 | W4: M19 | X4: M20 | Y4: M21 | Z4: M22 | AA4: M23 | AB4: M24
B6: Cashflow Profiles
B8: Options
B9: Traditional | E9: 1000000 | I9: 50000 | J9: 50000 | K9: 50000 | L9: 50000 | M9: 50000 | N9: 50000 | O9: 50000 | P9: 50000 | Q9: 50000 | R9: 50000 | S9: 50000 | T9: 50000 | U9: 50000 | V9: 50000 | W9: 50000 | X9: 50000
B10: Modular | E10: 1000000 | I10: 500000 | L10: 500000 | U10: 20000 | V10: 20000 | W10: 20000 | X10: 20000
B11: Spare 1
B12: Spare 2
B13: Spare 3
B15: Selected
B16: ='3.3.2 Nested'!E12 -> Modular | C16: =MATCH(B16,B9:B13,0) -> 2 | E16: =INDEX(E9:E13,$C16) -> 1000000 | F16: =INDEX(F9:F13,$C16) -> 0 | G16: =INDEX(G9:G13,$C16) -> 0 | H16: =INDEX(H9:H13,$C16) -> 0 | I16: =INDEX(I9:I13,$C16) -> 500000 | J16: =INDEX(J9:J13,$C16) -> 0 | K16: =INDEX(K9:K13,$C16) -> 0 | L16: =INDEX(L9:L13,$C16) -> 500000 | M16: =INDEX(M9:M13,$C16) -> 0 | N16: =INDEX(N9:N13,$C16) -> 0 | O16: =INDEX(O9:O13,$C16) -> 0 | P16: =INDEX(P9:P13,$C16) -> 0 | Q16: =INDEX(Q9:Q13,$C16) -> 0 | R16: =INDEX(R9:R13,$C16) -> 0 | S16: =INDEX(S9:S13,$C16) -> 0 | T16: =INDEX(T9:T13,$C16) -> 0 | U16: =INDEX(U9:U13,$C16) -> 20000 | V16: =INDEX(V9:V13,$C16) -> 20000 | W16: =INDEX(W9:W13,$C16) -> 20000 | X16: =INDEX(X9:X13,$C16) -> 20000 | Y16: =INDEX(Y9:Y13,$C16) -> 0 | Z16: =INDEX(Z9:Z13,$C16) -> 0 | AA16: =INDEX(AA9:AA13,$C16) -> 0 | AB16: =INDEX(AB9:AB13,$C16) -> 0

Sheet 3.4 Form Controls
A2: 3.4 Form Controls
E7: =TRANSPOSE(G17:K17) -> Traditional Build
E8: Modular Build
E9: Modular + Int
E10: 0
E11: 0
C13: Selected Scenario | E13: 1
C15: Variable | D15: Units | E15: Live | G15: 1 | H15: 2 | I15: 3 | J15: 4 | K15: 5
C17: Scenario Name | D17: [text] | E17: =INDEX(G17:K17,$E$13) -> Traditional Build | G17: Traditional Build | H17: Modular Build | I17: Modular + Int
C19: Build Profile | D19: [Text] | E19: =IF(INDEX(G19:K19,$E$13)="",G19,INDEX(G19:K19,$E$13)) -> Traditional | G19: Traditional | H19: Modular | I19: Modular
C21: Revenue Y1 | D21: [£'000] | E21: =IF(INDEX(G21:K21,$E$13)="",G21,INDEX(G21:K21,$E$13)) -> 1000 | G21: 1000
C22: Revenue Y2 | D22: [£'000] | E22: =IF(INDEX(G22:K22,$E$13)="",G22,INDEX(G22:K22,$E$13)) -> 1200 | G22: 1200
C23: Revenue Y3 | D23: [£'000] | E23: =IF(INDEX(G23:K23,$E$13)="",G23,INDEX(G23:K23,$E$13)) -> 1500 | G23: 1500
C24: Revenue Y4 | D24: [£'000] | E24: =IF(INDEX(G24:K24,$E$13)="",G24,INDEX(G24:K24,$E$13)) -> 1800 | G24: 1800
C26: CoS% Y1 | D26: [%] | E26: =IF(INDEX(G26:K26,$E$13)="",G26,INDEX(G26:K26,$E$13)) -> 0.7 | G26: 0.7
C27: CoS% Y2 | D27: [%] | E27: =IF(INDEX(G27:K27,$E$13)="",G27,INDEX(G27:K27,$E$13)) -> 0.69 | G27: 0.69
C28: CoS% Y3 | D28: [%] | E28: =IF(INDEX(G28:K28,$E$13)="",G28,INDEX(G28:K28,$E$13)) -> 0.68 | G28: 0.68
C29: CoS% Y4 | D29: [%] | E29: =IF(INDEX(G29:K29,$E$13)="",G29,INDEX(G29:K29,$E$13)) -> 0.67 | G29: 0.67
C31: Interest Rate Y1 | D31: [%] | E31: =IF(INDEX(G31:K31,$E$13)="",G31,INDEX(G31:K31,$E$13)) -> 0.03 | G31: 0.03 | I31: 0.04
C32: Interest Rate Y2 | D32: [%] | E32: =IF(INDEX(G32:K32,$E$13)="",G32,INDEX(G32:K32,$E$13)) -> 0.03 | G32: 0.03 | I32: 0.04
C33: Interest Rate Y3 | D33: [%] | E33: =IF(INDEX(G33:K33,$E$13)="",G33,INDEX(G33:K33,$E$13)) -> 0.03 | G33: 0.03 | I33: 0.04
C34: Interest Rate Y4 | D34: [%] | E34: =IF(INDEX(G34:K34,$E$13)="",G34,INDEX(G34:K34,$E$13)) -> 0.03 | G34: 0.03 | I34: 0.04

Sheet 3.4.1 Other Sheet
A2: 3.4.1 Another Sheet

Sheet 3.5 Form Controls (Ex)
A2: 3.5 Form Controls Example
C7: Selected Scenario | E7: 1
C9: Variable | D9: Units | E9: Live | G9: 1 | H9: 2 | I9: 3 | J9: 4 | K9: 5
C11: Scenario Name | D11: [text] | E11: =INDEX(G11:K11,$E$7) -> Traditional Build | G11: Traditional Build | H11: Modular Build | I11: Modular + Int
C13: Build Profile | D13: [Text] | E13: =IF(INDEX(G13:K13,$E$7)="",G13,INDEX(G13:K13,$E$7)) -> Traditional | G13: Traditional | H13: Modular | I13: Modular
C15: Revenue Y1 | D15: [£'000] | E15: =IF(INDEX(G15:K15,$E$7)="",G15,INDEX(G15:K15,$E$7)) -> 1000 | G15: 1000
C16: Revenue Y2 | D16: [£'000] | E16: =IF(INDEX(G16:K16,$E$7)="",G16,INDEX(G16:K16,$E$7)) -> 1200 | G16: 1200
C17: Revenue Y3 | D17: [£'000] | E17: =IF(INDEX(G17:K17,$E$7)="",G17,INDEX(G17:K17,$E$7)) -> 1500 | G17: 1500
C18: Revenue Y4 | D18: [£'000] | E18: =IF(INDEX(G18:K18,$E$7)="",G18,INDEX(G18:K18,$E$7)) -> 1800 | G18: 1800
C20: CoS% Y1 | D20: [%] | E20: =IF(INDEX(G20:K20,$E$7)="",G20,INDEX(G20:K20,$E$7)) -> 0.7 | G20: 0.7
C21: CoS% Y2 | D21: [%] | E21: =IF(INDEX(G21:K21,$E$7)="",G21,INDEX(G21:K21,$E$7)) -> 0.69 | G21: 0.69
C22: CoS% Y3 | D22: [%] | E22: =IF(INDEX(G22:K22,$E$7)="",G22,INDEX(G22:K22,$E$7)) -> 0.68 | G22: 0.68
C23: CoS% Y4 | D23: [%] | E23: =IF(INDEX(G23:K23,$E$7)="",G23,INDEX(G23:K23,$E$7)) -> 0.67 | G23: 0.67
C25: Interest Rate Y1 | D25: [%] | E25: =IF(INDEX(G25:K25,$E$7)="",G25,INDEX(G25:K25,$E$7)) -> 0.03 | G25: 0.03 | I25: 0.04
C26: Interest Rate Y2 | D26: [%] | E26: =IF(INDEX(G26:K26,$E$7)="",G26,INDEX(G26:K26,$E$7)) -> 0.03 | G26: 0.03 | I26: 0.04
C27: Interest Rate Y3 | D27: [%] | E27: =IF(INDEX(G27:K27,$E$7)="",G27,INDEX(G27:K27,$E$7)) -> 0.03 | G27: 0.03 | I27: 0.04
C28: Interest Rate Y4 | D28: [%] | E28: =IF(INDEX(G28:K28,$E$7)="",G28,INDEX(G28:K28,$E$7)) -> 0.03 | G28: 0.03 | I28: 0.04

Sheet 3.5.1 Other Sheet (Ex)
A2: 3.5.1 Another Sheet

Sheet 3.5.2 Other Sheet (Ex)
A2: 3.5.2 Another Sheet

Sheet Part 4

Sheet 4.1 Macro
A2: 4.1 Macros
E7: =TRANSPOSE(G17:K17) -> Traditional Build
E8: Modular Build
E9: Modular + Int
E10: Extra Revenue
E11: 0
C13: Selected Scenario | E13: 2
C15: Variable | D15: Units | E15: Live | G15: 1 | H15: 2 | I15: 3 | J15: 4 | K15: 5
C17: Scenario Name | D17: [text] | E17: =INDEX(G17:K17,$E$13) -> Modular Build | G17: Traditional Build | H17: Modular Build | I17: Modular + Int | J17: Extra Revenue
C19: Build Profile | D19: [Text] | E19: =IF(INDEX(G19:K19,$E$13)="",G19,INDEX(G19:K19,$E$13)) -> Modular | G19: Traditional | H19: Modular | I19: Modular
C21: Revenue Y1 | D21: [£'000] | E21: =IF(INDEX(G21:K21,$E$13)="",G21,INDEX(G21:K21,$E$13)) -> 10000 | G21: 10000 | J21: 50000
C22: Revenue Y2 | D22: [£'000] | E22: =IF(INDEX(G22:K22,$E$13)="",G22,INDEX(G22:K22,$E$13)) -> 12000 | G22: 12000 | J22: 60000
C23: Revenue Y3 | D23: [£'000] | E23: =IF(INDEX(G23:K23,$E$13)="",G23,INDEX(G23:K23,$E$13)) -> 15000 | G23: 15000 | J23: 100000
C24: Revenue Y4 | D24: [£'000] | E24: =IF(INDEX(G24:K24,$E$13)="",G24,INDEX(G24:K24,$E$13)) -> 18000 | G24: 18000 | J24: 120000
C26: CoS% Y1 | D26: [%] | E26: =IF(INDEX(G26:K26,$E$13)="",G26,INDEX(G26:K26,$E$13)) -> 0.2 | G26: 0.2
C27: CoS% Y2 | D27: [%] | E27: =IF(INDEX(G27:K27,$E$13)="",G27,INDEX(G27:K27,$E$13)) -> 0.21 | G27: 0.21
C28: CoS% Y3 | D28: [%] | E28: =IF(INDEX(G28:K28,$E$13)="",G28,INDEX(G28:K28,$E$13)) -> 0.22 | G28: 0.22
C29: CoS% Y4 | D29: [%] | E29: =IF(INDEX(G29:K29,$E$13)="",G29,INDEX(G29:K29,$E$13)) -> 0.23 | G29: 0.23
C31: Interest Rate Y1 | D31: [%] | E31: =IF(INDEX(G31:K31,$E$13)="",G31,INDEX(G31:K31,$E$13)) -> 0.03 | G31: 0.03 | I31: 0.04
C32: Interest Rate Y2 | D32: [%] | E32: =IF(INDEX(G32:K32,$E$13)="",G32,INDEX(G32:K32,$E$13)) -> 0.03 | G32: 0.03 | I32: 0.04
C33: Interest Rate Y3 | D33: [%] | E33: =IF(INDEX(G33:K33,$E$13)="",G33,INDEX(G33:K33,$E$13)) -> 0.03 | G33: 0.03 | I33: 0.04
C34: Interest Rate Y4 | D34: [%] | E34: =IF(INDEX(G34:K34,$E$13)="",G34,INDEX(G34:K34,$E$13)) -> 0.03 | G34: 0.03 | I34: 0.04
C36: Discount Rate | D36: [%] | E36: =IF(INDEX(G36:K36,$E$13)="",G36,INDEX(G36:K36,$E$13)) -> 0.04 | G36: 0.04
C38: NPV | D38: [£'000] | E38: ='4.1.1 Model NPV'!E91 -> 24740.85546 | G38: 24740.85546 | H38: 24740.85546 | I38: 24718.8095 | J38: 160290.8616 | K38: 24740.85546

Sheet 4.1.1 Model NPV
A2: 4.1.1 Basic Model (linked to scenario manager)
C4: Timeline
C6: Year | E6: Year 0 | F6: Year 1 | G6: Year 2 | H6: Year 3 | I6: Year 4
C8: Input Assumptions
C9: P&L Assumptions
C11: Revenue | D11: [£'000] | F11: =TRANSPOSE('4.1 Macro'!E21:E24) -> 10000 | G11: 12000 | H11: 15000 | I11: 18000
C12: CoS % | D12: [%] | F12: =TRANSPOSE('4.1 Macro'!E26:E29) -> 0.2 | G12: 0.21 | H12: 0.22 | I12: 0.23
C13: Overheads Pct of Revenue | D13: [%] | F13: 0.1 | G13: 0.1 | H13: 0.1 | I13: 0.1
C14: Tax Rate | D14: [%] | F14: 0.19 | G14: 0.19 | H14: 0.19 | I14: 0.19
C16: Fixed Assets
C18: Depreciation Rate | F18: 0.1 | G18: 0.1 | H18: 0.1 | I18: 0.1
C20: Working Capital
C22: Debtors Days | F22: 30 | G22: 30 | H22: 30 | I22: 30
C23: Creditors Days | F23: 45 | G23: 45 | H23: 45 | I23: 45
C25: Loan
C27: Capital Drawdown | D27: [£'000] | F27: 1000
C28: Capital Repayment | D28: [£'000] | I28: -1000
C29: Interest Rate | D29: [%] | F29: =TRANSPOSE('4.1 Macro'!E31:E34) -> 0.03 | G29: 0.03 | H29: 0.03 | I29: 0.03
C31: Workings
C32: Fixed Assets
C34: =C32&" b/f" -> Fixed Assets b/f | F34: =E36 -> 10000 | G34: =F36 -> 9000 | H34: 8100 | I34: 7290
C35: Depreciation | F35: =-F34*F18 -> -1000 | G35: =-G34*G18 -> -900 | H35: -810 | I35: -729
C36: =C32&" c/f" -> Fixed Assets c/f | E36: =E$95 -> 10000 | F36: =SUM(F34:F35) -> 9000 | G36: =SUM(G34:G35) -> 8100 | H36: 7290 | I36: 6561
C38: Debtors
C40: =C38&" b/f" -> Debtors b/f | F40: =E43 -> 900 | G40: =F43 -> 821.9178082 | H40: 986.3013699 | I40: 1232.876712
C41: Sales | F41: =F77 -> 10000 | G41: =G77 -> 12000 | H41: =H77 -> 15000 | I41: =I77 -> 18000
C42: Cash | F42: =F43-F40-F41 -> -10078.08219 | G42: =G43-G40-G41 -> -11835.61644 | H42: -14753.42466 | I42: -17753.42466
C43: =C38&" c/f" -> Debtors c/f | E43: =E$97 -> 900 | F43: =F41*F22/365 -> 821.9178082 | G43: =G41*G22/365 -> 986.3013699 | H43: 1232.876712 | I43: 1479.452055
C45: Creditors
C47: =C45&" b/f" -> Creditors b/f | F47: =E50 -> -400 | G47: =F50 -> -369.8630137 | H47: -458.630137 | I47: -591.7808219
C48: Costs | F48: =F78+F81 -> -3000 | G48: =G78+G81 -> -3720 | H48: =H78+H81 -> -4800 | I48: =I78+I81 -> -5940
C49: Cash | F49: =F50-F47-F48 -> 3030.136986 | G49: =G50-G47-G48 -> 3631.232877 | H49: 4666.849315 | I49: 5799.452055
C50: =C45&" c/f" -> Creditors c/f | E50: =E101 -> -400 | F50: =F48*F23/365 -> -369.8630137 | G50: =G48*G23/365 -> -458.630137 | H50: -591.7808219 | I50: -732.3287671
C52: Loan
C54: =C52&" b/f" -> Loan b/f | F54: =E59 -> 0 | G54: =F59 -> -1000 | H54: -1000 | I54: -1000
C55: Capital Drawn | F55: =-F27 -> -1000 | G55: =-G27 -> 0 | H55: 0 | I55: 0
C56: Capital Repaid | F56: =-F28 -> 0 | G56: 0 | H56: 0 | I56: 1000
C57: Interest Charged | F57: =(F54+SUM(F55:F56)/2)*F29 -> -15 | G57: =(G54+SUM(G55:G56)/2)*G29 -> -30 | H57: -30 | I57: -15
C58: Interest Paid | F58: =-F57 -> 15 | G58: =-G57 -> 30 | H58: 30 | I58: 15
C59: =C52&" c/f" -> Loan c/f | E59: =E103 -> 0 | F59: =SUM(F54:F58) -> -1000 | G59: =SUM(G54:G58) -> -1000 | H59: -1000 | I59: 0
C61: Tax
C63: =C61&" b/f" -> Tax b/f | F63: =E66 -> -500 | G63: =F66 -> -568.575 | H63: -698.25 | I63: -889.2
C64: Charge | F64: =F87 -> -1137.15 | G64: =G87 -> -1396.5 | H64: =H87 -> -1778.4 | I64: =I87 -> -2150.04
C65: Cash | F65: =-F64/2-E66 -> 1068.575 | G65: =-F64/2-G64/2 -> 1266.825 | H65: =-G64/2-H64/2 -> 1587.45 | I65: 1964.22
C66: =C61&" c/f" -> Tax c/f | E66: =E102 -> -500 | F66: =SUM(F63:F65) -> -568.575 | G66: =SUM(G63:G65) -> -698.25 | H66: -889.2 | I66: -1075.02
C68: Reserves
C70: =C68&" b/f" -> Reserves b/f | F70: =E72 -> 16000 | G70: =F72 -> 20847.85 | H70: 26801.35 | I70: 34382.95
C71: Profit in period | F71: =F88 -> 4847.85 | G71: =G88 -> 5953.5 | H71: =H88 -> 7581.6 | I71: =I88 -> 9165.96
C72: =C68&" c/f" -> Reserves c/f | E72: =E110 -> 16000 | F72: =SUM(F70:F71) -> 20847.85 | G72: =SUM(G70:G71) -> 26801.35 | H72: 34382.95 | I72: 43548.91
C74: Financial Statements
C75: P&L
C77: Revenue | D77: [£'000] | F77: =F11 -> 10000 | G77: =G11 -> 12000 | H77: =H11 -> 15000 | I77: =I11 -> 18000
C78: Cost of Sales | D78: [£'000] | F78: =-F77*F12 -> -2000 | G78: =-G77*G12 -> -2520 | H78: =-H77*H12 -> -3300 | I78: =-I77*I12 -> -4140
C79: Gross Margin | D79: [£'000] | F79: =SUM(F77:F78) -> 8000 | G79: =SUM(G77:G78) -> 9480 | H79: 11700 | I79: 13860
C80: Gross Margin Pct | D80: [%] | F80: =IF(F77=0,0,F79/F77) -> 0.8 | G80: =IF(G77=0,0,G79/G77) -> 0.79 | H80: 0.78 | I80: 0.77
C81: Overheads | D81: [£'000] | F81: =-F77*F13 -> -1000 | G81: =-G77*G13 -> -1200 | H81: =-H77*H13 -> -1500 | I81: =-I77*I13 -> -1800
C82: Depreciation | D82: [£'000] | F82: =F35 -> -1000 | G82: =G35 -> -900 | H82: =H35 -> -810 | I82: =I35 -> -729
C83: EBIT | D83: [£'000] | F83: =F79+F81+F82 -> 6000 | G83: =G79+G81+G82 -> 7380 | H83: 9390 | I83: 11331
C84: EBIT Pct | D84: [%] | F84: =IF(F77=0,0,F83/F77) -> 0.6 | G84: =IF(G77=0,0,G83/G77) -> 0.615 | H84: 0.626 | I84: 0.6295
C85: Interest | D85: [£'000] | F85: =F57 -> -15 | G85: =G57 -> -30 | H85: =H57 -> -30 | I85: =I57 -> -15
C86: PBT | D86: [£'000] | F86: =SUM(F83,F85) -> 5985 | G86: =SUM(G83,G85) -> 7350 | H86: 9360 | I86: 11316
C87: Tax | D87: [£'000] | F87: =-F86*F14 -> -1137.15 | G87: =-G86*G14 -> -1396.5 | H87: =-H86*H14 -> -1778.4 | I87: =-I86*I14 -> -2150.04
C88: PAT | D88: [£'000] | F88: =SUM(F86:F87) -> 4847.85 | G88: =SUM(G86:G87) -> 5953.5 | H88: 7581.6 | I88: 9165.96
C90: Discount Rate | D90: [%] | E90: ='4.1 Macro'!E36 -> 0.04
C91: NPV | D91: [£'000] | E91: =NPV(E90,F88:I88) -> 24740.85546
C93: Balance Sheet
C95: Fixed Assets | D95: [£'000] | E95: 10000 | F95: =F36 -> 9000 | G95: =G36 -> 8100 | H95: =H36 -> 7290 | I95: =I36 -> 6561
C97: Debtors | D97: [£'000] | E97: 900 | F97: =F43 -> 821.9178082 | G97: =G43 -> 986.3013699 | H97: =H43 -> 1232.876712 | I97: =I43 -> 1479.452055
C98: Cash | D98: [£'000] | E98: 6000 | F98: =F122 -> 12964.37021 | G98: =G122 -> 19871.92877 | H98: 28341.05411 | I98: 37315.80671
C99: Current Assets | D99: [£'000] | E99: =SUM(E97:E98) -> 6900 | F99: =SUM(F97:F98) -> 13786.28801 | G99: 20858.23014 | H99: 29573.93082 | I99: 38795.25877
C101: Creditors | D101: [£'000] | E101: -400 | F101: =F50 -> -369.8630137 | G101: =G50 -> -458.630137 | H101: =H50 -> -591.7808219 | I101: =I50 -> -732.3287671
C102: Tax | D102: [£'000] | E102: -500 | F102: =F66 -> -568.575 | G102: =G66 -> -698.25 | H102: =H66 -> -889.2 | I102: =I66 -> -1075.02
C103: Loans | D103: [£'000] | E103: 0 | F103: =F59 -> -1000 | G103: =G59 -> -1000 | H103: =H59 -> -1000 | I103: =I59 -> 0
C104: Current Liabilities | D104: [£'000] | E104: =SUM(E101:E103) -> -900 | F104: =SUM(F101:F103) -> -1938.438014 | G104: -2156.880137 | H104: -2480.980822 | I104: -1807.348767
C106: Net Current Assets | D106: [£'000] | E106: =E99+E104 -> 6000 | F106: =F99+F104 -> 11847.85 | G106: 18701.35 | H106: 27092.95 | I106: 36987.91
C108: Net Assets | D108: [£'000] | E108: =E106+E95 -> 16000 | F108: =F106+F95 -> 20847.85 | G108: 26801.35 | H108: 34382.95 | I108: 43548.91
C110: Retained Earnings | D110: [£'000] | E110: =E108 -> 16000 | F110: =F72 -> 20847.85 | G110: =G72 -> 26801.35 | H110: =H72 -> 34382.95 | I110: =I72 -> 43548.91
C111: Shareholders Funds | D111: [£'000] | E111: =E110 -> 16000 | F111: =F110 -> 20847.85 | G111: 26801.35 | H111: 34382.95 | I111: 43548.91
C113: Cashflow
C115: Receipts from Debtors | D115: [£'000] | F115: =-F42 -> 10078.08219 | G115: =-G42 -> 11835.61644 | H115: =-H42 -> 14753.42466 | I115: =-I42 -> 17753.42466
C116: Payment to Creditors | D116: [£'000] | F116: =-F49 -> -3030.136986 | G116: =-G49 -> -3631.232877 | H116: =-H49 -> -4666.849315 | I116: =-I49 -> -5799.452055
C117: Payment to Loans | D117: [£'000] | F117: =-SUM(F55:F56,F58) -> 985 | G117: =-SUM(G55:G56,G58) -> -30 | H117: =-SUM(H55:H56,H58) -> -30 | I117: =-SUM(I55:I56,I58) -> -1015
C118: Payment to Tax | D118: [£'000] | F118: =-F65 -> -1068.575 | G118: =-G65 -> -1266.825 | H118: =-H65 -> -1587.45 | I118: =-I65 -> -1964.22
C119: Net Cashflow | D119: [£'000] | F119: =SUM(F115:F118) -> 6964.370205 | G119: =SUM(G115:G118) -> 6907.558562 | H119: 8469.125342 | I119: 8974.752603
C121: Cash b/f | D121: [£'000] | F121: =E122 -> 6000 | G121: =F122 -> 12964.37021 | H121: 19871.92877 | I121: 28341.05411
C122: Cash c/f | D122: [£'000] | E122: =E98 -> 6000 | F122: =F119+F121 -> 12964.37021 | G122: =G119+G121 -> 19871.92877 | H122: 28341.05411 | I122: 37315.80671
C124: Checks
C126: Balance Sheet Balances | F126: =F111-F108 -> 0 | G126: =G111-G108 -> 0 | H126: 0 | I126: 0
C127: Reserves matches P&L | F127: =F110-E110-F88 -> 0 | G127: =G110-F110-G88 -> 0 | H127: 0 | I127: 0
C128: Cashflow matches balance Sheet | F128: =F122-F98 -> 0 | G128: =G122-G98 -> 0 | H128: 0 | I128: 0
A130: =REPT("End of Sheet ",10) -> End of Sheet End of Sheet End of Sheet End of Sheet End of Sheet End of Sheet End of Sheet End of Sheet End of Sheet End of Sheet

Sheet Part 5

Sheet 5.1 Data Table
A2: 5.1 Data Table
E7: =TRANSPOSE(G17:K17) -> Traditional Build
E8: Modular Build
E9: Modular + Int
E10: Extra Revenue
E11: 0
C13: Selected Scenario | E13: 4
C15: Variable | D15: Units | E15: Live | G15: 1 | H15: 2 | I15: 3 | J15: 4 | K15: 5
C17: Scenario Name | D17: [text] | E17: =INDEX(G17:K17,$E$13) -> Extra Revenue | G17: Traditional Build | H17: Modular Build | I17: Modular + Int | J17: Extra Revenue
C19: Build Profile | D19: [Text] | E19: =IF(INDEX(G19:K19,$E$13)="",G19,INDEX(G19:K19,$E$13)) -> Traditional | G19: Traditional | H19: Modular | I19: Modular
C21: Revenue Y1 | D21: [£'000] | E21: =IF(INDEX(G21:K21,$E$13)="",G21,INDEX(G21:K21,$E$13)) -> 50000 | G21: 10000 | J21: 50000
C22: Revenue Y2 | D22: [£'000] | E22: =IF(INDEX(G22:K22,$E$13)="",G22,INDEX(G22:K22,$E$13)) -> 60000 | G22: 12000 | J22: 60000
C23: Revenue Y3 | D23: [£'000] | E23: =IF(INDEX(G23:K23,$E$13)="",G23,INDEX(G23:K23,$E$13)) -> 100000 | G23: 15000 | J23: 100000
C24: Revenue Y4 | D24: [£'000] | E24: =IF(INDEX(G24:K24,$E$13)="",G24,INDEX(G24:K24,$E$13)) -> 120000 | G24: 18000 | J24: 120000
C26: CoS% Y1 | D26: [%] | E26: =IF(INDEX(G26:K26,$E$13)="",G26,INDEX(G26:K26,$E$13)) -> 0.2 | G26: 0.2
C27: CoS% Y2 | D27: [%] | E27: =IF(INDEX(G27:K27,$E$13)="",G27,INDEX(G27:K27,$E$13)) -> 0.21 | G27: 0.21
C28: CoS% Y3 | D28: [%] | E28: =IF(INDEX(G28:K28,$E$13)="",G28,INDEX(G28:K28,$E$13)) -> 0.22 | G28: 0.22
C29: CoS% Y4 | D29: [%] | E29: =IF(INDEX(G29:K29,$E$13)="",G29,INDEX(G29:K29,$E$13)) -> 0.23 | G29: 0.23
C31: Interest Rate Y1 | D31: [%] | E31: =IF(INDEX(G31:K31,$E$13)="",G31,INDEX(G31:K31,$E$13)) -> 0.03 | G31: 0.03 | I31: 0.04
C32: Interest Rate Y2 | D32: [%] | E32: =IF(INDEX(G32:K32,$E$13)="",G32,INDEX(G32:K32,$E$13)) -> 0.03 | G32: 0.03 | I32: 0.04
C33: Interest Rate Y3 | D33: [%] | E33: =IF(INDEX(G33:K33,$E$13)="",G33,INDEX(G33:K33,$E$13)) -> 0.03 | G33: 0.03 | I33: 0.04
C34: Interest Rate Y4 | D34: [%] | E34: =IF(INDEX(G34:K34,$E$13)="",G34,INDEX(G34:K34,$E$13)) -> 0.03 | G34: 0.03 | I34: 0.04
C36: Discount Rate | D36: [%] | E36: =IF(INDEX(G36:K36,$E$13)="",G36,INDEX(G36:K36,$E$13)) -> 0.04 | G36: 0.04
G38: =G15 -> 1 | H38: =H15 -> 2 | I38: 3 | J38: 4 | K38: 5
C39: NPV | D39: [£'000] | F39: ='5.1.1 Model'!E91 -> 160290.8616 | G39: 24740.85546 | H39: 24740.85546 | I39: 24718.8095 | J39: 160290.8616 | K39: 24740.85546

Sheet 5.1.1 Model
A2: 5.1.1 Basic Model (linked to scenario manager)
C4: Timeline
C6: Year | E6: Year 0 | F6: Year 1 | G6: Year 2 | H6: Year 3 | I6: Year 4
C8: Input Assumptions
C9: P&L Assumptions
C11: Revenue | D11: [£'000] | F11: =TRANSPOSE('5.1 Data Table'!E21:E24) -> 50000 | G11: 60000 | H11: 100000 | I11: 120000
C12: CoS % | D12: [%] | F12: =TRANSPOSE('5.1 Data Table'!E26:E29) -> 0.2 | G12: 0.21 | H12: 0.22 | I12: 0.23
C13: Overheads Pct of Revenue | D13: [%] | F13: 0.1 | G13: 0.1 | H13: 0.1 | I13: 0.1
C14: Tax Rate | D14: [%] | F14: 0.19 | G14: 0.19 | H14: 0.19 | I14: 0.19
C16: Fixed Assets
C18: Depreciation Rate | F18: 0.1 | G18: 0.1 | H18: 0.1 | I18: 0.1
C20: Working Capital
C22: Debtors Days | F22: 30 | G22: 30 | H22: 30 | I22: 30
C23: Creditors Days | F23: 45 | G23: 45 | H23: 45 | I23: 45
C25: Loan
C27: Capital Drawdown | D27: [£'000] | F27: 1000
C28: Capital Repayment | D28: [£'000] | I28: -1000
C29: Interest Rate | D29: [%] | F29: =TRANSPOSE('5.1 Data Table'!E31:E34) -> 0.03 | G29: 0.03 | H29: 0.03 | I29: 0.03
C31: Workings
C32: Fixed Assets
C34: =C32&" b/f" -> Fixed Assets b/f | F34: =E36 -> 10000 | G34: =F36 -> 9000 | H34: 8100 | I34: 7290
C35: Depreciation | F35: =-F34*F18 -> -1000 | G35: =-G34*G18 -> -900 | H35: -810 | I35: -729
C36: =C32&" c/f" -> Fixed Assets c/f | E36: =E$95 -> 10000 | F36: =SUM(F34:F35) -> 9000 | G36: =SUM(G34:G35) -> 8100 | H36: 7290 | I36: 6561
C38: Debtors
C40: =C38&" b/f" -> Debtors b/f | F40: =E43 -> 900 | G40: =F43 -> 4109.589041 | H40: 4931.506849 | I40: 8219.178082
C41: Sales | F41: =F77 -> 50000 | G41: =G77 -> 60000 | H41: =H77 -> 100000 | I41: =I77 -> 120000
C42: Cash | F42: =F43-F40-F41 -> -46790.41096 | G42: =G43-G40-G41 -> -59178.08219 | H42: -96712.32877 | I42: -118356.1644
C43: =C38&" c/f" -> Debtors c/f | E43: =E$97 -> 900 | F43: =F41*F22/365 -> 4109.589041 | G43: =G41*G22/365 -> 4931.506849 | H43: 8219.178082 | I43: 9863.013699
C45: Creditors
C47: =C45&" b/f" -> Creditors b/f | F47: =E50 -> -400 | G47: =F50 -> -1849.315068 | H47: -2293.150685 | I47: -3945.205479
C48: Costs | F48: =F78+F81 -> -15000 | G48: =G78+G81 -> -18600 | H48: =H78+H81 -> -32000 | I48: =I78+I81 -> -39600
C49: Cash | F49: =F50-F47-F48 -> 13550.68493 | G49: =G50-G47-G48 -> 18156.16438 | H49: 30347.94521 | I49: 38663.0137
C50: =C45&" c/f" -> Creditors c/f | E50: =E101 -> -400 | F50: =F48*F23/365 -> -1849.315068 | G50: =G48*G23/365 -> -2293.150685 | H50: -3945.205479 | I50: -4882.191781
C52: Loan
C54: =C52&" b/f" -> Loan b/f | F54: =E59 -> 0 | G54: =F59 -> -1000 | H54: -1000 | I54: -1000
C55: Capital Drawn | F55: =-F27 -> -1000 | G55: =-G27 -> 0 | H55: 0 | I55: 0
C56: Capital Repaid | F56: =-F28 -> 0 | G56: 0 | H56: 0 | I56: 1000
C57: Interest Charged | F57: =(F54+SUM(F55:F56)/2)*F29 -> -15 | G57: =(G54+SUM(G55:G56)/2)*G29 -> -30 | H57: -30 | I57: -15
C58: Interest Paid | F58: =-F57 -> 15 | G58: =-G57 -> 30 | H58: 30 | I58: 15
C59: =C52&" c/f" -> Loan c/f | E59: =E103 -> 0 | F59: =SUM(F54:F58) -> -1000 | G59: =SUM(G54:G58) -> -1000 | H59: -1000 | I59: 0
C61: Tax
C63: =C61&" b/f" -> Tax b/f | F63: =E66 -> -500 | G63: =F66 -> -3228.575 | H63: -3844.65 | I63: -6380.2
C64: Charge | F64: =F87 -> -6457.15 | G64: =G87 -> -7689.3 | H64: =H87 -> -12760.4 | I64: =I87 -> -15134.64
C65: Cash | F65: =-F64/2-E66 -> 3728.575 | G65: =-F64/2-G64/2 -> 7073.225 | H65: =-G64/2-H64/2 -> 10224.85 | I65: 13947.52
C66: =C61&" c/f" -> Tax c/f | E66: =E102 -> -500 | F66: =SUM(F63:F65) -> -3228.575 | G66: =SUM(G63:G65) -> -3844.65 | H66: -6380.2 | I66: -7567.32
C68: Reserves
C70: =C68&" b/f" -> Reserves b/f | F70: =E72 -> 16000 | G70: =F72 -> 43527.85 | H70: 76308.55 | I70: 130708.15
C71: Profit in period | F71: =F88 -> 27527.85 | G71: =G88 -> 32780.7 | H71: =H88 -> 54399.6 | I71: =I88 -> 64521.36
C72: =C68&" c/f" -> Reserves c/f | E72: =E110 -> 16000 | F72: =SUM(F70:F71) -> 43527.85 | G72: =SUM(G70:G71) -> 76308.55 | H72: 130708.15 | I72: 195229.51
C74: Financial Statements
C75: P&L
C77: Revenue | D77: [£'000] | F77: =F11 -> 50000 | G77: =G11 -> 60000 | H77: =H11 -> 100000 | I77: =I11 -> 120000
C78: Cost of Sales | D78: [£'000] | F78: =-F77*F12 -> -10000 | G78: =-G77*G12 -> -12600 | H78: =-H77*H12 -> -22000 | I78: =-I77*I12 -> -27600
C79: Gross Margin | D79: [£'000] | F79: =SUM(F77:F78) -> 40000 | G79: =SUM(G77:G78) -> 47400 | H79: 78000 | I79: 92400
C80: Gross Margin Pct | D80: [%] | F80: =IF(F77=0,0,F79/F77) -> 0.8 | G80: =IF(G77=0,0,G79/G77) -> 0.79 | H80: 0.78 | I80: 0.77
C81: Overheads | D81: [£'000] | F81: =-F77*F13 -> -5000 | G81: =-G77*G13 -> -6000 | H81: =-H77*H13 -> -10000 | I81: =-I77*I13 -> -12000
C82: Depreciation | D82: [£'000] | F82: =F35 -> -1000 | G82: =G35 -> -900 | H82: =H35 -> -810 | I82: =I35 -> -729
C83: EBIT | D83: [£'000] | F83: =F79+F81+F82 -> 34000 | G83: =G79+G81+G82 -> 40500 | H83: 67190 | I83: 79671
C84: EBIT Pct | D84: [%] | F84: =IF(F77=0,0,F83/F77) -> 0.68 | G84: =IF(G77=0,0,G83/G77) -> 0.675 | H84: 0.6719 | I84: 0.663925
C85: Interest | D85: [£'000] | F85: =F57 -> -15 | G85: =G57 -> -30 | H85: =H57 -> -30 | I85: =I57 -> -15
C86: PBT | D86: [£'000] | F86: =SUM(F83,F85) -> 33985 | G86: =SUM(G83,G85) -> 40470 | H86: 67160 | I86: 79656
C87: Tax | D87: [£'000] | F87: =-F86*F14 -> -6457.15 | G87: =-G86*G14 -> -7689.3 | H87: =-H86*H14 -> -12760.4 | I87: =-I86*I14 -> -15134.64
C88: PAT | D88: [£'000] | F88: =SUM(F86:F87) -> 27527.85 | G88: =SUM(G86:G87) -> 32780.7 | H88: 54399.6 | I88: 64521.36
C90: Discount Rate | D90: [%] | E90: ='5.1 Data Table'!E36 -> 0.04
C91: NPV | D91: [£'000] | E91: =NPV(E90,F88:I88) -> 160290.8616
C93: Balance Sheet
C95: Fixed Assets | D95: [£'000] | E95: 10000 | F95: =F36 -> 9000 | G95: =G36 -> 8100 | H95: =H36 -> 7290 | I95: =I36 -> 6561
C97: Debtors | D97: [£'000] | E97: 900 | F97: =F43 -> 4109.589041 | G97: =G43 -> 4931.506849 | H97: =H43 -> 8219.178082 | I97: =I43 -> 9863.013699
C98: Cash | D98: [£'000] | E98: 6000 | F98: =F122 -> 36496.15103 | G98: =G122 -> 70414.84384 | H98: 126524.3774 | I98: 191255.0081
C99: Current Assets | D99: [£'000] | E99: =SUM(E97:E98) -> 6900 | F99: =SUM(F97:F98) -> 40605.74007 | G99: 75346.35068 | H99: 134743.5555 | I99: 201118.0218
C101: Creditors | D101: [£'000] | E101: -400 | F101: =F50 -> -1849.315068 | G101: =G50 -> -2293.150685 | H101: =H50 -> -3945.205479 | I101: =I50 -> -4882.191781
C102: Tax | D102: [£'000] | E102: -500 | F102: =F66 -> -3228.575 | G102: =G66 -> -3844.65 | H102: =H66 -> -6380.2 | I102: =I66 -> -7567.32
C103: Loans | D103: [£'000] | E103: 0 | F103: =F59 -> -1000 | G103: =G59 -> -1000 | H103: =H59 -> -1000 | I103: =I59 -> 0
C104: Current Liabilities | D104: [£'000] | E104: =SUM(E101:E103) -> -900 | F104: =SUM(F101:F103) -> -6077.890068 | G104: -7137.800685 | H104: -11325.40548 | I104: -12449.51178
C106: Net Current Assets | D106: [£'000] | E106: =E99+E104 -> 6000 | F106: =F99+F104 -> 34527.85 | G106: 68208.55 | H106: 123418.15 | I106: 188668.51
C108: Net Assets | D108: [£'000] | E108: =E106+E95 -> 16000 | F108: =F106+F95 -> 43527.85 | G108: 76308.55 | H108: 130708.15 | I108: 195229.51
C110: Retained Earnings | D110: [£'000] | E110: =E108 -> 16000 | F110: =F72 -> 43527.85 | G110: =G72 -> 76308.55 | H110: =H72 -> 130708.15 | I110: =I72 -> 195229.51
C111: Shareholders Funds | D111: [£'000] | E111: =E110 -> 16000 | F111: =F110 -> 43527.85 | G111: 76308.55 | H111: 130708.15 | I111: 195229.51
C113: Cashflow
C115: Receipts from Debtors | D115: [£'000] | F115: =-F42 -> 46790.41096 | G115: =-G42 -> 59178.08219 | H115: =-H42 -> 96712.32877 | I115: =-I42 -> 118356.1644
C116: Payment to Creditors | D116: [£'000] | F116: =-F49 -> -13550.68493 | G116: =-G49 -> -18156.16438 | H116: =-H49 -> -30347.94521 | I116: =-I49 -> -38663.0137
C117: Payment to Loans | D117: [£'000] | F117: =-SUM(F55:F56,F58) -> 985 | G117: =-SUM(G55:G56,G58) -> -30 | H117: =-SUM(H55:H56,H58) -> -30 | I117: =-SUM(I55:I56,I58) -> -1015
C118: Payment to Tax | D118: [£'000] | F118: =-F65 -> -3728.575 | G118: =-G65 -> -7073.225 | H118: =-H65 -> -10224.85 | I118: =-I65 -> -13947.52
C119: Net Cashflow | D119: [£'000] | F119: =SUM(F115:F118) -> 30496.15103 | G119: =SUM(G115:G118) -> 33918.69281 | H119: 56109.53356 | I119: 64730.63068
C121: Cash b/f | D121: [£'000] | F121: =E122 -> 6000 | G121: =F122 -> 36496.15103 | H121: 70414.84384 | I121: 126524.3774
C122: Cash c/f | D122: [£'000] | E122: =E98 -> 6000 | F122: =F119+F121 -> 36496.15103 | G122: =G119+G121 -> 70414.84384 | H122: 126524.3774 | I122: 191255.0081
C124: Checks
C126: Balance Sheet Balances | F126: =F111-F108 -> 0 | G126: =G111-G108 -> 0 | H126: 0 | I126: 0
C127: Reserves matches P&L | F127: =F110-E110-F88 -> 0 | G127: =G110-F110-G88 -> 0 | H127: 0 | I127: 0
C128: Cashflow matches balance Sheet | F128: =F122-F98 -> 0 | G128: =G122-G98 -> 0 | H128: 0 | I128: 0
A130: =REPT("End of Sheet ",10) -> End of Sheet End of Sheet End of Sheet End of Sheet End of Sheet End of Sheet End of Sheet End of Sheet End of Sheet End of Sheet

Sheet 5.2 Data Table (Ex)
A2: 5.2 Data Table (Example)
E7: =TRANSPOSE(G17:K17) -> Traditional Build
E8: Modular Build
E9: Modular + Int
E10: Extra Revenue
E11: 0
C13: Selected Scenario | E13: 4
C15: Variable | D15: Units | E15: Live | G15: 1 | H15: 2 | I15: 3 | J15: 4 | K15: 5
C17: Scenario Name | D17: [text] | E17: =INDEX(G17:K17,$E$13) -> Extra Revenue | G17: Traditional Build | H17: Modular Build | I17: Modular + Int | J17: Extra Revenue
C19: Build Profile | D19: [Text] | E19: =IF(INDEX(G19:K19,$E$13)="",G19,INDEX(G19:K19,$E$13)) -> Traditional | G19: Traditional | H19: Modular | I19: Modular
C21: Revenue Y1 | D21: [£'000] | E21: =IF(INDEX(G21:K21,$E$13)="",G21,INDEX(G21:K21,$E$13)) -> 50000 | G21: 10000 | J21: 50000
C22: Revenue Y2 | D22: [£'000] | E22: =IF(INDEX(G22:K22,$E$13)="",G22,INDEX(G22:K22,$E$13)) -> 60000 | G22: 12000 | J22: 60000
C23: Revenue Y3 | D23: [£'000] | E23: =IF(INDEX(G23:K23,$E$13)="",G23,INDEX(G23:K23,$E$13)) -> 100000 | G23: 15000 | J23: 100000
C24: Revenue Y4 | D24: [£'000] | E24: =IF(INDEX(G24:K24,$E$13)="",G24,INDEX(G24:K24,$E$13)) -> 120000 | G24: 18000 | J24: 120000
C26: CoS% Y1 | D26: [%] | E26: =IF(INDEX(G26:K26,$E$13)="",G26,INDEX(G26:K26,$E$13)) -> 0.2 | G26: 0.2
C27: CoS% Y2 | D27: [%] | E27: =IF(INDEX(G27:K27,$E$13)="",G27,INDEX(G27:K27,$E$13)) -> 0.21 | G27: 0.21
C28: CoS% Y3 | D28: [%] | E28: =IF(INDEX(G28:K28,$E$13)="",G28,INDEX(G28:K28,$E$13)) -> 0.22 | G28: 0.22
C29: CoS% Y4 | D29: [%] | E29: =IF(INDEX(G29:K29,$E$13)="",G29,INDEX(G29:K29,$E$13)) -> 0.23 | G29: 0.23
C31: Interest Rate Y1 | D31: [%] | E31: =IF(INDEX(G31:K31,$E$13)="",G31,INDEX(G31:K31,$E$13)) -> 0.03 | G31: 0.03 | I31: 0.04
C32: Interest Rate Y2 | D32: [%] | E32: =IF(INDEX(G32:K32,$E$13)="",G32,INDEX(G32:K32,$E$13)) -> 0.03 | G32: 0.03 | I32: 0.04
C33: Interest Rate Y3 | D33: [%] | E33: =IF(INDEX(G33:K33,$E$13)="",G33,INDEX(G33:K33,$E$13)) -> 0.03 | G33: 0.03 | I33: 0.04
C34: Interest Rate Y4 | D34: [%] | E34: =IF(INDEX(G34:K34,$E$13)="",G34,INDEX(G34:K34,$E$13)) -> 0.03 | G34: 0.03 | I34: 0.04
C36: Discount Rate | D36: [%] | E36: =IF(INDEX(G36:K36,$E$13)="",G36,INDEX(G36:K36,$E$13)) -> 0.04 | G36: 0.04
C39: NPV | D39: [£'000] | E39: ='5.2.1 Model (Ex)'!E91 -> 160290.8616

Sheet 5.2.1 Model (Ex)
A2: 5.2.1 Basic Model (linked to scenario manager)
C4: Timeline
C6: Year | E6: Year 0 | F6: Year 1 | G6: Year 2 | H6: Year 3 | I6: Year 4
C8: Input Assumptions
C9: P&L Assumptions
C11: Revenue | D11: [£'000] | F11: =TRANSPOSE('5.2 Data Table (Ex)'!E21:E24) -> 50000 | G11: 60000 | H11: 100000 | I11: 120000
C12: CoS % | D12: [%] | F12: =TRANSPOSE('5.2 Data Table (Ex)'!E26:E29) -> 0.2 | G12: 0.21 | H12: 0.22 | I12: 0.23
C13: Overheads Pct of Revenue | D13: [%] | F13: 0.1 | G13: 0.1 | H13: 0.1 | I13: 0.1
C14: Tax Rate | D14: [%] | F14: 0.19 | G14: 0.19 | H14: 0.19 | I14: 0.19
C16: Fixed Assets
C18: Depreciation Rate | F18: 0.1 | G18: 0.1 | H18: 0.1 | I18: 0.1
C20: Working Capital
C22: Debtors Days | F22: 30 | G22: 30 | H22: 30 | I22: 30
C23: Creditors Days | F23: 45 | G23: 45 | H23: 45 | I23: 45
C25: Loan
C27: Capital Drawdown | D27: [£'000] | F27: 1000
C28: Capital Repayment | D28: [£'000] | I28: -1000
C29: Interest Rate | D29: [%] | F29: =TRANSPOSE('5.2 Data Table (Ex)'!E31:E34) -> 0.03 | G29: 0.03 | H29: 0.03 | I29: 0.03
C31: Workings
C32: Fixed Assets
C34: =C32&" b/f" -> Fixed Assets b/f | F34: =E36 -> 10000 | G34: =F36 -> 9000 | H34: 8100 | I34: 7290
C35: Depreciation | F35: =-F34*F18 -> -1000 | G35: =-G34*G18 -> -900 | H35: -810 | I35: -729
C36: =C32&" c/f" -> Fixed Assets c/f | E36: =E$95 -> 10000 | F36: =SUM(F34:F35) -> 9000 | G36: =SUM(G34:G35) -> 8100 | H36: 7290 | I36: 6561
C38: Debtors
C40: =C38&" b/f" -> Debtors b/f | F40: =E43 -> 900 | G40: =F43 -> 4109.589041 | H40: 4931.506849 | I40: 8219.178082
C41: Sales | F41: =F77 -> 50000 | G41: =G77 -> 60000 | H41: =H77 -> 100000 | I41: =I77 -> 120000
C42: Cash | F42: =F43-F40-F41 -> -46790.41096 | G42: =G43-G40-G41 -> -59178.08219 | H42: -96712.32877 | I42: -118356.1644
C43: =C38&" c/f" -> Debtors c/f | E43: =E$97 -> 900 | F43: =F41*F22/365 -> 4109.589041 | G43: =G41*G22/365 -> 4931.506849 | H43: 8219.178082 | I43: 9863.013699
C45: Creditors
C47: =C45&" b/f" -> Creditors b/f | F47: =E50 -> -400 | G47: =F50 -> -1849.315068 | H47: -2293.150685 | I47: -3945.205479
C48: Costs | F48: =F78+F81 -> -15000 | G48: =G78+G81 -> -18600 | H48: =H78+H81 -> -32000 | I48: =I78+I81 -> -39600
C49: Cash | F49: =F50-F47-F48 -> 13550.68493 | G49: =G50-G47-G48 -> 18156.16438 | H49: 30347.94521 | I49: 38663.0137
C50: =C45&" c/f" -> Creditors c/f | E50: =E101 -> -400 | F50: =F48*F23/365 -> -1849.315068 | G50: =G48*G23/365 -> -2293.150685 | H50: -3945.205479 | I50: -4882.191781
C52: Loan
C54: =C52&" b/f" -> Loan b/f | F54: =E59 -> 0 | G54: =F59 -> -1000 | H54: -1000 | I54: -1000
C55: Capital Drawn | F55: =-F27 -> -1000 | G55: =-G27 -> 0 | H55: 0 | I55: 0
C56: Capital Repaid | F56: =-F28 -> 0 | G56: 0 | H56: 0 | I56: 1000
C57: Interest Charged | F57: =(F54+SUM(F55:F56)/2)*F29 -> -15 | G57: =(G54+SUM(G55:G56)/2)*G29 -> -30 | H57: -30 | I57: -15
C58: Interest Paid | F58: =-F57 -> 15 | G58: =-G57 -> 30 | H58: 30 | I58: 15
C59: =C52&" c/f" -> Loan c/f | E59: =E103 -> 0 | F59: =SUM(F54:F58) -> -1000 | G59: =SUM(G54:G58) -> -1000 | H59: -1000 | I59: 0
C61: Tax
C63: =C61&" b/f" -> Tax b/f | F63: =E66 -> -500 | G63: =F66 -> -3228.575 | H63: -3844.65 | I63: -6380.2
C64: Charge | F64: =F87 -> -6457.15 | G64: =G87 -> -7689.3 | H64: =H87 -> -12760.4 | I64: =I87 -> -15134.64
C65: Cash | F65: =-F64/2-E66 -> 3728.575 | G65: =-F64/2-G64/2 -> 7073.225 | H65: =-G64/2-H64/2 -> 10224.85 | I65: 13947.52
C66: =C61&" c/f" -> Tax c/f | E66: =E102 -> -500 | F66: =SUM(F63:F65) -> -3228.575 | G66: =SUM(G63:G65) -> -3844.65 | H66: -6380.2 | I66: -7567.32
C68: Reserves
C70: =C68&" b/f" -> Reserves b/f | F70: =E72 -> 16000 | G70: =F72 -> 43527.85 | H70: 76308.55 | I70: 130708.15
C71: Profit in period | F71: =F88 -> 27527.85 | G71: =G88 -> 32780.7 | H71: =H88 -> 54399.6 | I71: =I88 -> 64521.36
C72: =C68&" c/f" -> Reserves c/f | E72: =E110 -> 16000 | F72: =SUM(F70:F71) -> 43527.85 | G72: =SUM(G70:G71) -> 76308.55 | H72: 130708.15 | I72: 195229.51
C74: Financial Statements
C75: P&L
C77: Revenue | D77: [£'000] | F77: =F11 -> 50000 | G77: =G11 -> 60000 | H77: =H11 -> 100000 | I77: =I11 -> 120000
C78: Cost of Sales | D78: [£'000] | F78: =-F77*F12 -> -10000 | G78: =-G77*G12 -> -12600 | H78: =-H77*H12 -> -22000 | I78: =-I77*I12 -> -27600
C79: Gross Margin | D79: [£'000] | F79: =SUM(F77:F78) -> 40000 | G79: =SUM(G77:G78) -> 47400 | H79: 78000 | I79: 92400
C80: Gross Margin Pct | D80: [%] | F80: =IF(F77=0,0,F79/F77) -> 0.8 | G80: =IF(G77=0,0,G79/G77) -> 0.79 | H80: 0.78 | I80: 0.77
C81: Overheads | D81: [£'000] | F81: =-F77*F13 -> -5000 | G81: =-G77*G13 -> -6000 | H81: =-H77*H13 -> -10000 | I81: =-I77*I13 -> -12000
C82: Depreciation | D82: [£'000] | F82: =F35 -> -1000 | G82: =G35 -> -900 | H82: =H35 -> -810 | I82: =I35 -> -729
C83: EBIT | D83: [£'000] | F83: =F79+F81+F82 -> 34000 | G83: =G79+G81+G82 -> 40500 | H83: 67190 | I83: 79671
C84: EBIT Pct | D84: [%] | F84: =IF(F77=0,0,F83/F77) -> 0.68 | G84: =IF(G77=0,0,G83/G77) -> 0.675 | H84: 0.6719 | I84: 0.663925
C85: Interest | D85: [£'000] | F85: =F57 -> -15 | G85: =G57 -> -30 | H85: =H57 -> -30 | I85: =I57 -> -15
C86: PBT | D86: [£'000] | F86: =SUM(F83,F85) -> 33985 | G86: =SUM(G83,G85) -> 40470 | H86: 67160 | I86: 79656
C87: Tax | D87: [£'000] | F87: =-F86*F14 -> -6457.15 | G87: =-G86*G14 -> -7689.3 | H87: =-H86*H14 -> -12760.4 | I87: =-I86*I14 -> -15134.64
C88: PAT | D88: [£'000] | F88: =SUM(F86:F87) -> 27527.85 | G88: =SUM(G86:G87) -> 32780.7 | H88: 54399.6 | I88: 64521.36
C90: Discount Rate | D90: [%] | E90: ='5.2 Data Table (Ex)'!E36 -> 0.04
C91: NPV | D91: [£'000] | E91: =NPV(E90,F88:I88) -> 160290.8616
C93: Balance Sheet
C95: Fixed Assets | D95: [£'000] | E95: 10000 | F95: =F36 -> 9000 | G95: =G36 -> 8100 | H95: =H36 -> 7290 | I95: =I36 -> 6561
C97: Debtors | D97: [£'000] | E97: 900 | F97: =F43 -> 4109.589041 | G97: =G43 -> 4931.506849 | H97: =H43 -> 8219.178082 | I97: =I43 -> 9863.013699
C98: Cash | D98: [£'000] | E98: 6000 | F98: =F122 -> 36496.15103 | G98: =G122 -> 70414.84384 | H98: 126524.3774 | I98: 191255.0081
C99: Current Assets | D99: [£'000] | E99: =SUM(E97:E98) -> 6900 | F99: =SUM(F97:F98) -> 40605.74007 | G99: 75346.35068 | H99: 134743.5555 | I99: 201118.0218
C101: Creditors | D101: [£'000] | E101: -400 | F101: =F50 -> -1849.315068 | G101: =G50 -> -2293.150685 | H101: =H50 -> -3945.205479 | I101: =I50 -> -4882.191781
C102: Tax | D102: [£'000] | E102: -500 | F102: =F66 -> -3228.575 | G102: =G66 -> -3844.65 | H102: =H66 -> -6380.2 | I102: =I66 -> -7567.32
C103: Loans | D103: [£'000] | E103: 0 | F103: =F59 -> -1000 | G103: =G59 -> -1000 | H103: =H59 -> -1000 | I103: =I59 -> 0
C104: Current Liabilities | D104: [£'000] | E104: =SUM(E101:E103) -> -900 | F104: =SUM(F101:F103) -> -6077.890068 | G104: -7137.800685 | H104: -11325.40548 | I104: -12449.51178
C106: Net Current Assets | D106: [£'000] | E106: =E99+E104 -> 6000 | F106: =F99+F104 -> 34527.85 | G106: 68208.55 | H106: 123418.15 | I106: 188668.51
C108: Net Assets | D108: [£'000] | E108: =E106+E95 -> 16000 | F108: =F106+F95 -> 43527.85 | G108: 76308.55 | H108: 130708.15 | I108: 195229.51
C110: Retained Earnings | D110: [£'000] | E110: =E108 -> 16000 | F110: =F72 -> 43527.85 | G110: =G72 -> 76308.55 | H110: =H72 -> 130708.15 | I110: =I72 -> 195229.51
C111: Shareholders Funds | D111: [£'000] | E111: =E110 -> 16000 | F111: =F110 -> 43527.85 | G111: 76308.55 | H111: 130708.15 | I111: 195229.51
C113: Cashflow
C115: Receipts from Debtors | D115: [£'000] | F115: =-F42 -> 46790.41096 | G115: =-G42 -> 59178.08219 | H115: =-H42 -> 96712.32877 | I115: =-I42 -> 118356.1644
C116: Payment to Creditors | D116: [£'000] | F116: =-F49 -> -13550.68493 | G116: =-G49 -> -18156.16438 | H116: =-H49 -> -30347.94521 | I116: =-I49 -> -38663.0137
C117: Payment to Loans | D117: [£'000] | F117: =-SUM(F55:F56,F58) -> 985 | G117: =-SUM(G55:G56,G58) -> -30 | H117: =-SUM(H55:H56,H58) -> -30 | I117: =-SUM(I55:I56,I58) -> -1015
C118: Payment to Tax | D118: [£'000] | F118: =-F65 -> -3728.575 | G118: =-G65 -> -7073.225 | H118: =-H65 -> -10224.85 | I118: =-I65 -> -13947.52
C119: Net Cashflow | D119: [£'000] | F119: =SUM(F115:F118) -> 30496.15103 | G119: =SUM(G115:G118) -> 33918.69281 | H119: 56109.53356 | I119: 64730.63068
C121: Cash b/f | D121: [£'000] | F121: =E122 -> 6000 | G121: =F122 -> 36496.15103 | H121: 70414.84384 | I121: 126524.3774
C122: Cash c/f | D122: [£'000] | E122: =E98 -> 6000 | F122: =F119+F121 -> 36496.15103 | G122: =G119+G121 -> 70414.84384 | H122: 126524.3774 | I122: 191255.0081
C124: Checks
C126: Balance Sheet Balances | F126: =F111-F108 -> 0 | G126: =G111-G108 -> 0 | H126: 0 | I126: 0
C127: Reserves matches P&L | F127: =F110-E110-F88 -> 0 | G127: =G110-F110-G88 -> 0 | H127: 0 | I127: 0
C128: Cashflow matches balance Sheet | F128: =F122-F98 -> 0 | G128: =G122-G98 -> 0 | H128: 0 | I128: 0
A130: =REPT("End of Sheet ",10) -> End of Sheet End of Sheet End of Sheet End of Sheet End of Sheet End of Sheet End of Sheet End of Sheet End of Sheet End of Sheet

Sheet Part 6

Sheet 6.1 Pitfalls
A2: 6.1 Pitfalls
C4: Too much nesting
C8: Data tables can be slow
C12: Too many variables
C16: Excels built in Scenario Manager

Sheet Part 7

Sheet 7.1 Conclusion
A2: 7.0 Conclusion
C4: 1.0 Introduction to Scenarios
C6: 2.0 Basic Implementations
C8: 3.0 Advanced Implementations
C10: 4.0 Macros
C12: 5.0 Data Tables
C14: 6.0 Pitfalls
C16: 7.0 Conclusion
C18: 8.0 Q+A

Sheet 7.2 Data Table (Ex Spare)
A2: 7.2 Data Table (Example Spare)
E7: =TRANSPOSE(G17:K17) -> Traditional Build
E8: Modular Build
E9: Modular + Int
E10: Extra Revenue
E11: 0
C13: Selected Scenario | E13: 4
C15: Variable | D15: Units | E15: Live | G15: 1 | H15: 2 | I15: 3 | J15: 4 | K15: 5
C17: Scenario Name | D17: [text] | E17: =INDEX(G17:K17,$E$13) -> Extra Revenue | G17: Traditional Build | H17: Modular Build | I17: Modular + Int | J17: Extra Revenue
C19: Build Profile | D19: [Text] | E19: =IF(INDEX(G19:K19,$E$13)="",G19,INDEX(G19:K19,$E$13)) -> Traditional | G19: Traditional | H19: Modular | I19: Modular
C21: Revenue Y1 | D21: [£'000] | E21: =IF(INDEX(G21:K21,$E$13)="",G21,INDEX(G21:K21,$E$13)) -> 5000 | G21: 1000 | J21: 5000
C22: Revenue Y2 | D22: [£'000] | E22: =IF(INDEX(G22:K22,$E$13)="",G22,INDEX(G22:K22,$E$13)) -> 6000 | G22: 1200 | J22: 6000
C23: Revenue Y3 | D23: [£'000] | E23: =IF(INDEX(G23:K23,$E$13)="",G23,INDEX(G23:K23,$E$13)) -> 10000 | G23: 1500 | J23: 10000
C24: Revenue Y4 | D24: [£'000] | E24: =IF(INDEX(G24:K24,$E$13)="",G24,INDEX(G24:K24,$E$13)) -> 12000 | G24: 1800 | J24: 12000
C26: CoS% Y1 | D26: [%] | E26: =IF(INDEX(G26:K26,$E$13)="",G26,INDEX(G26:K26,$E$13)) -> 0.7 | G26: 0.7
C27: CoS% Y2 | D27: [%] | E27: =IF(INDEX(G27:K27,$E$13)="",G27,INDEX(G27:K27,$E$13)) -> 0.69 | G27: 0.69
C28: CoS% Y3 | D28: [%] | E28: =IF(INDEX(G28:K28,$E$13)="",G28,INDEX(G28:K28,$E$13)) -> 0.68 | G28: 0.68
C29: CoS% Y4 | D29: [%] | E29: =IF(INDEX(G29:K29,$E$13)="",G29,INDEX(G29:K29,$E$13)) -> 0.67 | G29: 0.67
C31: Interest Rate Y1 | D31: [%] | E31: =IF(INDEX(G31:K31,$E$13)="",G31,INDEX(G31:K31,$E$13)) -> 0.03 | G31: 0.03 | I31: 0.04
C32: Interest Rate Y2 | D32: [%] | E32: =IF(INDEX(G32:K32,$E$13)="",G32,INDEX(G32:K32,$E$13)) -> 0.03 | G32: 0.03 | I32: 0.04
C33: Interest Rate Y3 | D33: [%] | E33: =IF(INDEX(G33:K33,$E$13)="",G33,INDEX(G33:K33,$E$13)) -> 0.03 | G33: 0.03 | I33: 0.04
C34: Interest Rate Y4 | D34: [%] | E34: =IF(INDEX(G34:K34,$E$13)="",G34,INDEX(G34:K34,$E$13)) -> 0.03 | G34: 0.03 | I34: 0.04
C36: Discount Rate | D36: [%] | E36: =IF(INDEX(G36:K36,$E$13)="",G36,INDEX(G36:K36,$E$13)) -> 0.04 | G36: 0.04
C39: NPV | D39: [£'000] | E39: ='7.2.1 Model (Ex Spare)'!E91 -> 2610.630624

Sheet 7.2.1 Model (Ex Spare)
A2: 7.2.1 Basic Model (linked to scenario manager Spare)
C4: Timeline
C6: Year | E6: Year 0 | F6: Year 1 | G6: Year 2 | H6: Year 3 | I6: Year 4
C8: Input Assumptions
C9: P&L Assumptions
C11: Revenue | D11: [£'000] | F11: =TRANSPOSE('7.2 Data Table (Ex Spare)'!E21:E24) -> 5000 | G11: 6000 | H11: 10000 | I11: 12000
C12: CoS % | D12: [%] | F12: =TRANSPOSE('7.2 Data Table (Ex Spare)'!E26:E29) -> 0.7 | G12: 0.69 | H12: 0.68 | I12: 0.67
C13: Overheads Pct of Revenue | D13: [%] | F13: 0.1 | G13: 0.1 | H13: 0.1 | I13: 0.1
C14: Tax Rate | D14: [%] | F14: 0.19 | G14: 0.19 | H14: 0.19 | I14: 0.19
C16: Fixed Assets
C18: Depreciation Rate | F18: 0.1 | G18: 0.1 | H18: 0.1 | I18: 0.1
C20: Working Capital
C22: Debtors Days | F22: 30 | G22: 30 | H22: 30 | I22: 30
C23: Creditors Days | F23: 45 | G23: 45 | H23: 45 | I23: 45
C25: Loan
C27: Capital Drawdown | D27: [£'000] | F27: 1000
C28: Capital Repayment | D28: [£'000] | I28: -1000
C29: Interest Rate | D29: [%] | F29: =TRANSPOSE('7.2 Data Table (Ex Spare)'!E31:E34) -> 0.03 | G29: 0.03 | H29: 0.03 | I29: 0.03
C31: Workings
C32: Fixed Assets
C34: =C32&" b/f" -> Fixed Assets b/f | F34: =E36 -> 10000 | G34: =F36 -> 9000 | H34: 8100 | I34: 7290
C35: Depreciation | F35: =-F34*F18 -> -1000 | G35: =-G34*G18 -> -900 | H35: -810 | I35: -729
C36: =C32&" c/f" -> Fixed Assets c/f | E36: =E$95 -> 10000 | F36: =SUM(F34:F35) -> 9000 | G36: =SUM(G34:G35) -> 8100 | H36: 7290 | I36: 6561
C38: Debtors
C40: =C38&" b/f" -> Debtors b/f | F40: =E43 -> 900 | G40: =F43 -> 410.9589041 | H40: 493.1506849 | I40: 821.9178082
C41: Sales | F41: =F77 -> 5000 | G41: =G77 -> 6000 | H41: =H77 -> 10000 | I41: =I77 -> 12000
C42: Cash | F42: =F43-F40-F41 -> -5489.041096 | G42: =G43-G40-G41 -> -5917.808219 | H42: -9671.232877 | I42: -11835.61644
C43: =C38&" c/f" -> Debtors c/f | E43: =E$97 -> 900 | F43: =F41*F22/365 -> 410.9589041 | G43: =G41*G22/365 -> 493.1506849 | H43: 821.9178082 | I43: 986.3013699
C45: Creditors
C47: =C45&" b/f" -> Creditors b/f | F47: =E50 -> -400 | G47: =F50 -> -493.1506849 | H47: -584.3835616 | I47: -961.6438356
C48: Costs | F48: =F78+F81 -> -4000 | G48: =G78+G81 -> -4740 | H48: =H78+H81 -> -7800 | I48: =I78+I81 -> -9240
C49: Cash | F49: =F50-F47-F48 -> 3906.849315 | G49: =G50-G47-G48 -> 4648.767123 | H49: 7422.739726 | I49: 9062.465753
C50: =C45&" c/f" -> Creditors c/f | E50: =E101 -> -400 | F50: =F48*F23/365 -> -493.1506849 | G50: =G48*G23/365 -> -584.3835616 | H50: -961.6438356 | I50: -1139.178082
C52: Loan
C54: =C52&" b/f" -> Loan b/f | F54: =E59 -> 0 | G54: =F59 -> -1000 | H54: -1000 | I54: -1000
C55: Capital Drawn | F55: =-F27 -> -1000 | G55: =-G27 -> 0 | H55: 0 | I55: 0
C56: Capital Repaid | F56: =-F28 -> 0 | G56: 0 | H56: 0 | I56: 1000
C57: Interest Charged | F57: =(F54+SUM(F55:F56)/2)*F29 -> -15 | G57: =(G54+SUM(G55:G56)/2)*G29 -> -30 | H57: -30 | I57: -15
C58: Interest Paid | F58: =-F57 -> 15 | G58: =-G57 -> 30 | H58: 30 | I58: 15
C59: =C52&" c/f" -> Loan c/f | E59: =E103 -> 0 | F59: =SUM(F54:F58) -> -1000 | G59: =SUM(G54:G58) -> -1000 | H59: -1000 | I59: 0
C61: Tax
C63: =C61&" b/f" -> Tax b/f | F63: =E66 -> -500 | G63: =F66 -> 1.425 | H63: -31.35 | I63: -129.2
C64: Charge | F64: =F87 -> 2.85 | G64: =G87 -> -62.7 | H64: =H87 -> -258.4 | I64: =I87 -> -383.04
C65: Cash | F65: =-F64/2-E66 -> 498.575 | G65: =-F64/2-G64/2 -> 29.925 | H65: =-G64/2-H64/2 -> 160.55 | I65: 320.72
C66: =C61&" c/f" -> Tax c/f | E66: =E102 -> -500 | F66: =SUM(F63:F65) -> 1.425 | G66: =SUM(G63:G65) -> -31.35 | H66: -129.2 | I66: -191.52
C68: Reserves
C70: =C68&" b/f" -> Reserves b/f | F70: =E72 -> 16000 | G70: =F72 -> 15987.85 | H70: 16255.15 | I70: 17356.75
C71: Profit in period | F71: =F88 -> -12.15 | G71: =G88 -> 267.3 | H71: =H88 -> 1101.6 | I71: =I88 -> 1632.96
C72: =C68&" c/f" -> Reserves c/f | E72: =E110 -> 16000 | F72: =SUM(F70:F71) -> 15987.85 | G72: =SUM(G70:G71) -> 16255.15 | H72: 17356.75 | I72: 18989.71
C74: Financial Statements
C75: P&L
C77: Revenue | D77: [£'000] | F77: =F11 -> 5000 | G77: =G11 -> 6000 | H77: =H11 -> 10000 | I77: =I11 -> 12000
C78: Cost of Sales | D78: [£'000] | F78: =-F77*F12 -> -3500 | G78: =-G77*G12 -> -4140 | H78: =-H77*H12 -> -6800 | I78: =-I77*I12 -> -8040
C79: Gross Margin | D79: [£'000] | F79: =SUM(F77:F78) -> 1500 | G79: =SUM(G77:G78) -> 1860 | H79: 3200 | I79: 3960
C80: Gross Margin Pct | D80: [%] | F80: =IF(F77=0,0,F79/F77) -> 0.3 | G80: =IF(G77=0,0,G79/G77) -> 0.31 | H80: 0.32 | I80: 0.33
C81: Overheads | D81: [£'000] | F81: =-F77*F13 -> -500 | G81: =-G77*G13 -> -600 | H81: =-H77*H13 -> -1000 | I81: =-I77*I13 -> -1200
C82: Depreciation | D82: [£'000] | F82: =F35 -> -1000 | G82: =G35 -> -900 | H82: =H35 -> -810 | I82: =I35 -> -729
C83: EBIT | D83: [£'000] | F83: =F79+F81+F82 -> 0 | G83: =G79+G81+G82 -> 360 | H83: 1390 | I83: 2031
C84: EBIT Pct | D84: [%] | F84: =IF(F77=0,0,F83/F77) -> 0 | G84: =IF(G77=0,0,G83/G77) -> 0.06 | H84: 0.139 | I84: 0.16925
C85: Interest | D85: [£'000] | F85: =F57 -> -15 | G85: =G57 -> -30 | H85: =H57 -> -30 | I85: =I57 -> -15
C86: PBT | D86: [£'000] | F86: =SUM(F83,F85) -> -15 | G86: =SUM(G83,G85) -> 330 | H86: 1360 | I86: 2016
C87: Tax | D87: [£'000] | F87: =-F86*F14 -> 2.85 | G87: =-G86*G14 -> -62.7 | H87: =-H86*H14 -> -258.4 | I87: =-I86*I14 -> -383.04
C88: PAT | D88: [£'000] | F88: =SUM(F86:F87) -> -12.15 | G88: =SUM(G86:G87) -> 267.3 | H88: 1101.6 | I88: 1632.96
C90: Discount Rate | D90: [%] | E90: ='7.2 Data Table (Ex Spare)'!E36 -> 0.04
C91: NPV | D91: [£'000] | E91: =NPV(E90,F88:I88) -> 2610.630624
C93: Balance Sheet
C95: Fixed Assets | D95: [£'000] | E95: 10000 | F95: =F36 -> 9000 | G95: =G36 -> 8100 | H95: =H36 -> 7290 | I95: =I36 -> 6561
C97: Debtors | D97: [£'000] | E97: 900 | F97: =F43 -> 410.9589041 | G97: =G43 -> 493.1506849 | H97: =H43 -> 821.9178082 | I97: =I43 -> 986.3013699
C98: Cash | D98: [£'000] | E98: 6000 | F98: =F122 -> 8068.616781 | G98: =G122 -> 9277.732877 | H98: 11335.67603 | I98: 12773.10671
C99: Current Assets | D99: [£'000] | E99: =SUM(E97:E98) -> 6900 | F99: =SUM(F97:F98) -> 8479.575685 | G99: 9770.883562 | H99: 12157.59384 | I99: 13759.40808
C101: Creditors | D101: [£'000] | E101: -400 | F101: =F50 -> -493.1506849 | G101: =G50 -> -584.3835616 | H101: =H50 -> -961.6438356 | I101: =I50 -> -1139.178082
C102: Tax | D102: [£'000] | E102: -500 | F102: =F66 -> 1.425 | G102: =G66 -> -31.35 | H102: =H66 -> -129.2 | I102: =I66 -> -191.52
C103: Loans | D103: [£'000] | E103: 0 | F103: =F59 -> -1000 | G103: =G59 -> -1000 | H103: =H59 -> -1000 | I103: =I59 -> 0
C104: Current Liabilities | D104: [£'000] | E104: =SUM(E101:E103) -> -900 | F104: =SUM(F101:F103) -> -1491.725685 | G104: -1615.733562 | H104: -2090.843836 | I104: -1330.698082
C106: Net Current Assets | D106: [£'000] | E106: =E99+E104 -> 6000 | F106: =F99+F104 -> 6987.85 | G106: 8155.15 | H106: 10066.75 | I106: 12428.71
C108: Net Assets | D108: [£'000] | E108: =E106+E95 -> 16000 | F108: =F106+F95 -> 15987.85 | G108: 16255.15 | H108: 17356.75 | I108: 18989.71
C110: Retained Earnings | D110: [£'000] | E110: =E108 -> 16000 | F110: =F72 -> 15987.85 | G110: =G72 -> 16255.15 | H110: =H72 -> 17356.75 | I110: =I72 -> 18989.71
C111: Shareholders Funds | D111: [£'000] | E111: =E110 -> 16000 | F111: =F110 -> 15987.85 | G111: 16255.15 | H111: 17356.75 | I111: 18989.71
C113: Cashflow
C115: Receipts from Debtors | D115: [£'000] | F115: =-F42 -> 5489.041096 | G115: =-G42 -> 5917.808219 | H115: =-H42 -> 9671.232877 | I115: =-I42 -> 11835.61644
C116: Payment to Creditors | D116: [£'000] | F116: =-F49 -> -3906.849315 | G116: =-G49 -> -4648.767123 | H116: =-H49 -> -7422.739726 | I116: =-I49 -> -9062.465753
C117: Payment to Loans | D117: [£'000] | F117: =-SUM(F55:F56,F58) -> 985 | G117: =-SUM(G55:G56,G58) -> -30 | H117: =-SUM(H55:H56,H58) -> -30 | I117: =-SUM(I55:I56,I58) -> -1015
C118: Payment to Tax | D118: [£'000] | F118: =-F65 -> -498.575 | G118: =-G65 -> -29.925 | H118: =-H65 -> -160.55 | I118: =-I65 -> -320.72
C119: Net Cashflow | D119: [£'000] | F119: =SUM(F115:F118) -> 2068.616781 | G119: =SUM(G115:G118) -> 1209.116096 | H119: 2057.943151 | I119: 1437.430685
C121: Cash b/f | D121: [£'000] | F121: =E122 -> 6000 | G121: =F122 -> 8068.616781 | H121: 9277.732877 | I121: 11335.67603
C122: Cash c/f | D122: [£'000] | E122: =E98 -> 6000 | F122: =F119+F121 -> 8068.616781 | G122: =G119+G121 -> 9277.732877 | H122: 11335.67603 | I122: 12773.10671
C124: Checks
C126: Balance Sheet Balances | F126: =F111-F108 -> 0 | G126: =G111-G108 -> 0 | H126: 0 | I126: 0
C127: Reserves matches P&L | F127: =F110-E110-F88 -> 3.641531521e-13 | G127: =G110-F110-G88 -> -7.389644452e-13 | H127: 0 | I127: 0
C128: Cashflow matches balance Sheet | F128: =F122-F98 -> 0 | G128: =G122-G98 -> 0 | H128: 0 | I128: 0
A130: =REPT("End of Sheet ",10) -> End of Sheet End of Sheet End of Sheet End of Sheet End of Sheet End of Sheet End of Sheet End of Sheet End of Sheet End of Sheet
